Cogmind - Beta 15 @@@ ROGUE MODE // 2025.08.13 @ 23:08:03 Player: Cracklepappy Result: Destroyed by Alpha 7 with Multirail Performance ------------- Evolutions (9) 4500 Regions Visited (36) 7200 Robots Destroyed (767) 3835 Value Destroyed (41592) 41592 Prototype IDs (119) 2380 Alien Tech Used (5) 1000 Bonus (22402) 22402 TOTAL SCORE: 82909 Bonus ------- Triggered High Security 1000 High Alert Combat Kills 14600 Follower Combat Kills 1100 Entered Garrisons 800 Entered DSFs 500 Aligned with FarCom 300 Acquired ECA 300 Met Zhirov 300 Met Warlord at Base 500 MAIN.C Attacked Warlord 500 Warlord Defense Kills 2274 Scanned by Researcher 500 Friendly Fire -272 Cogmind --------- Core Integrity 0/1600 Matter 280/300 Energy 100/100 System Corruption 14% Temperature Cool (0) Movement Core (50) Location -1/Command Parts ------- > --- POWER (3) -------- (None) > --- PROPULSION (4) --- (None) > --- UTILITY (10) ----- (None) > --- WEAPON (8) ------- (None) > --- INVENTORY (5) ---- Matter Drive Subatomic Replicator Plasma Lance Peak State ------------ > --- POWER ------------ Quantum Reactor Quantum Reactor Reinforced Quantum Reactor > --- PROPULSION ------- Centrium Wheel Centrium Wheel Centrium Wheel Centrium Wheel > --- UTILITY ---------- Advanced Cooling System Experimental Coolant Injector Huge Storage Unit Experimental Core Analyzer Precision Matter Filter Advanced Kinecellerator Graphene Brace Advanced Thermal Shield Advanced Hardlight Generator Long-range Tractor Beam > --- WEAPON ----------- Enhanced Nova Cannon Railgun Railgun Railgun Railgun Enhanced Hardcell Cannon Perforator > --- INVENTORY -------- Particle Reactor Micro Antimatter Reactor Matter Drive Wheel Centrium Wheel Centrium Wheel Matter Compressor Experimental Core Analyzer Experimental Shock Absorption System Advanced Force Field Advanced Force Field Advanced Component Analysis Suite Long-range Tractor Beam High-powered Transdimensional Reconstructor Subatomic Replicator Enhanced Quantum Rifle Compact HERF Cannon Hypervelocity Railgun Enhanced Hardcell Cannon Hellfire Missile Launcher Ragnarok Missile Launcher Ragnarok Missile Launcher Plasma Cutter Powered Hammer Plasma Lance [Rating: 216] Favorites ----------- Power Reinforced Quantum Reactor Engine Improved Ion Engine Power Core Cooled Fission Core Reactor Reinforced Quantum Reactor Propulsion Wheel Wheel Wheel Utility Huge Storage Unit Device Advanced Cooling System Storage Huge Storage Unit Processor Experimental Targeting Computer Hackware Improved Hacking Suite Protection Centrium Medium Armor Plating Weapon Heavy Assault Rifle Energy Gun Variable Charge Gun Energy Cannon Enhanced Nova Cannon Ballistic Gun Heavy Assault Rifle Ballistic Cannon Heavy Linear Accelerator Launcher Mini Smartbomb Launcher Special Weapon Plasma Cutter Impact Weapon Heavy Mace Slashing Weapon Scythe Piercing Weapon Plasma Lance Special Melee Weapon Datajack Build | -11 -10 -10 -9 -9 -9 -8 -8 -8 -8 -8 -8 -7 -7 -7 -7 -6 -6 -5 -5 -5 -5 -5 -5 -4 -4 -4 -4 -4 -3 -3 -3 -2 -2 -2 -1 -1 ------- Run | Yrd Mat Min Mat Min Exi Min Mat Gar Mat Gar Mat Fac Gar Fac Gar Fac DSF Fac Was Fac Upp Upp Zhi Pro Fac Upp Upp War Pro Res Tes Res Qua Frg Acc Com Slots Evolved 18 | . . . 2 . . . 2 . . . . 2 . . . 2 . 2 . . . . . . 2 . . . . 2 . 2 . . 2 . Power 2 | . . . . . . . . . . . . . . . . . . 1 . . . . . . . . . . . . . 1 . . . . Propulsion 2 | . . . . . . . . . . . . . . . . 1 . . . . . . . . 1 . . . . . . . . . . . Utility 8 | . . . . . . . 1 . . . . 1 . . . 1 . 1 . . . . . . 1 . . . . 2 . 1 . . . . Weapon 6 | . . . 2 . . . 1 . . . . 1 . . . . . . . . . . . . . . . . . . . . . . 2 . Parts Attached 437 | 7 18 5 25 . 4 3 27 8 10 8 9 15 37 5 12 5 4 10 6 15 1 . 6 2 9 6 6 18 8 6 36 29 21 13 18 25 Power 47 | 1 3 . 3 . . 1 4 2 1 4 2 1 2 . 1 2 . 1 1 1 . . . . . . . . . 1 6 4 2 . 2 2 Engine 18 | 1 3 . 3 . . 1 2 1 1 2 2 1 . . . . . 1 . . . . . . . . . . . . . . . . . . Core 10 | . . . . . . . 2 1 . 2 . . 2 . . 1 . . . 1 . . . . . . . . . . 1 . . . . . Reactor 19 | . . . . . . . . . . . . . . . 1 1 . . 1 . . . . . . . . . . 1 5 4 2 . 2 2 Propulsion 65 | 2 3 3 4 . 1 2 2 . 1 . . 1 5 . 4 . . . . 2 . . 1 . 3 . 1 1 1 1 9 3 6 2 4 3 Treads . | . . . . . . . . . . . . . . . . . . . . . . . . . . . . . . . . . . . . . Leg . | . . . . . . . . . . . . . . . . . . . . . . . . . . . . . . . . . . . . . Wheel 65 | 2 3 3 4 . 1 2 2 . 1 . . 1 5 . 4 . . . . 2 . . 1 . 3 . 1 1 1 1 9 3 6 2 4 3 Hover . | . . . . . . . . . . . . . . . . . . . . . . . . . . . . . . . . . . . . . Flight . | . . . . . . . . . . . . . . . . . . . . . . . . . . . . . . . . . . . . . Utility 142 | 2 3 2 7 . 1 . 7 2 3 . 3 6 10 3 1 . 3 5 2 7 . . 2 1 5 1 3 9 2 3 10 12 8 7 6 6 Device 95 | 1 1 2 5 . . . 4 2 2 . 3 4 10 . 1 . 2 4 1 3 . . 1 1 3 . 3 8 1 1 6 5 6 6 5 4 Storage 10 | 1 1 . 2 . . . . . . . . . . 1 . . . 1 . . . . . . . . . 1 . . 1 1 . . . 1 Processor 15 | . . . . . 1 . 1 . . . . 1 . 1 . . . . . 1 . . . . . 1 . . 1 2 1 4 . . . 1 Hackware 10 | . . . . . . . 1 . 1 . . 1 . 1 . . . . . 3 . . . . 2 . . . . . 1 . . . . . Protection 12 | . 1 . . . . . 1 . . . . . . . . . 1 . 1 . . . 1 . . . . . . . 1 2 2 1 1 . Artifact . | . . . . . . . . . . . . . . . . . . . . . . . . . . . . . . . . . . . . . Weapon 183 | 2 9 . 11 . 2 . 14 4 5 4 4 7 20 2 6 3 1 4 3 5 1 . 3 1 1 5 2 8 5 1 11 10 5 4 6 14 Energy Gun 23 | 1 3 . . . . . 1 . . . . . 2 . . . . . . . . . . . . 2 . 1 . . 6 4 . . 2 1 Energy Cannon 21 | . 1 . 1 . . . . . . . . . . . . 1 . . . 2 . . 1 . . 1 1 2 . . 2 2 2 1 2 2 Ballistic Gun 79 | 1 . . 8 . 2 . 10 2 5 4 4 2 15 1 3 2 1 2 . 2 . . . 1 1 . . 2 . . . 1 . 3 2 5 Ballistic Cannon 35 | . 2 . . . . . . . . . . 4 3 1 2 . . 1 3 1 . . 2 . . . 1 1 4 1 2 2 2 . . 3 Launcher 10 | . 1 . . . . . 1 . . . . 1 . . . . . . . . 1 . . . . 1 . . 1 . 1 1 . . . 2 Special Weapon 3 | . 2 . . . . . . 1 . . . . . . . . . . . . . . . . . . . . . . . . . . . . Impact Weapon 5 | . . . 1 . . . 1 . . . . . . . . . . 1 . . . . . . . . . . . . . . 1 . . 1 Slashing Weapon 1 | . . . . . . . 1 . . . . . . . . . . . . . . . . . . . . . . . . . . . . . Piercing Weapon 4 | . . . . . . . . . . . . . . . 1 . . . . . . . . . . 1 . 2 . . . . . . . . Special Melee Weapon 2 | . . . 1 . . . . 1 . . . . . . . . . . . . . . . . . . . . . . . . . . . . Unidentified Prototypes 30 | . . . 2 . . . 1 . . . . . . 1 . . . 1 . 1 . . 3 . . 1 . 5 . . 3 3 8 1 . . Parts Lost 133 | . 3 1 1 . 4 . 2 1 8 1 2 5 2 . 2 . . 6 3 3 . . . 1 8 6 . . 9 . 9 9 . 10 7 30 Power 19 | . 2 . 1 . 1 . . . 2 1 . 1 . . . . . . 1 . . . . . . 1 . . 1 . 1 2 . . 1 4 Propulsion 26 | . 1 1 . . 1 . . . 1 . . . . . 2 . . . . 2 . . . . 2 1 . . 2 . 5 2 . 3 . 3 Utility 34 | . . . . . . . 1 1 1 . 1 1 1 . . . . 1 . . . . . 1 2 . . . 1 . 2 2 . 5 3 11 Weapon 54 | . . . . . 2 . 1 . 4 . 1 3 1 . . . . 5 2 1 . . . . 4 4 . . 5 . 1 3 . 2 3 12 Highest Loss Streak 26 | . 3 1 1 . 4 . 1 1 6 1 2 2 1 . 1 . . 3 3 3 . . . 1 6 3 . . 9 . 3 9 . 4 3 26 To Critical Strikes 4 | . . . . . 3 . . . . . . . . . . . . . 1 . . . . . . . . . . . . . . . . . Average Backups 22 | 5 14 14 21 25 19 24 22 22 21 23 23 23 22 20 20 20 20 20 22 22 24 25 23 24 23 22 22 22 23 22 23 22 23 24 22 22 Power . | . . . . . . . . . . 1 1 . . 1 1 . . . . 1 1 1 1 1 1 . . . 1 1 . 1 1 1 . 1 Propulsion 1 | 3 2 1 2 2 1 1 2 2 1 2 3 3 2 2 1 2 2 2 2 1 2 2 2 2 . . . . . . . . 1 2 3 2 Utility 10 | . 4 4 9 12 9 13 10 10 9 11 12 12 11 10 9 8 8 9 12 11 11 11 13 13 12 14 14 13 15 16 16 10 9 8 8 7 Weapon 6 | . 6 7 9 10 8 9 8 8 8 5 5 4 6 5 6 8 8 7 5 5 7 8 2 4 4 3 3 4 4 2 4 8 6 6 6 6 Tool/Special . | . . . . . . . . . . . . . . . . . . . . . . . . . . . . . . . . . . . . . Unused Backups 101 | 5 3 . 11 . . . 8 3 . 3 1 3 . . 1 . 2 4 . 11 2 . 3 1 . . . 5 1 1 11 10 4 . 2 6 Power 6 | . . . . . . . . . . 1 . . . . . . . . . 2 . . . . . . . . . . . 2 . . 1 . Propulsion 14 | 4 . . 1 . . . 2 . . . 1 2 . . . . . . . 1 . . . . . . . . 1 . . 1 . . 1 . Utility 47 | 1 1 . 5 . . . 3 . . 2 . 1 . . . . . 1 . 4 1 . 2 1 . . . 5 . 1 8 6 3 . . 2 Weapon 29 | . 2 . 5 . . . 3 3 . . . . . . 1 . 2 3 . 3 1 . 1 . . . . . . . 3 1 . . . 1 Tool/Special 5 | . . . . . . . . . . . . . . . . . . . . 1 . . . . . . . . . . . . 1 . . 3 Average Slot Usage (%) 90 | . 98 99 99 100 78 95 89 89 87 89 89 91 96 83 80 85 86 86 69 83 88 88 66 94 89 87 89 94 90 91 95 92 97 83 90 89 Engine 3 | . 12 14 10 11 10 7 8 8 7 4 9 6 . . . . . 3 1 . . . . . . . . . . . . . . . . . Core 1 | . . . . . . . . . . 4 . . 6 7 . . . . . 3 5 5 5 5 5 . . . . . . . . . . . Reactor 4 | . . . . . . . . . . . . . . . 6 6 6 5 9 6 5 5 5 5 5 8 10 10 8 8 7 7 12 8 11 11 Wheel 14 | . 27 27 22 22 21 22 9 9 8 9 9 7 12 15 10 12 13 11 10 10 11 11 11 11 13 9 10 15 13 10 17 15 17 16 16 15 Device 14 | . 13 14 11 11 9 . 6 8 8 8 9 9 14 1 9 19 20 23 11 22 17 17 17 19 16 15 18 21 15 14 17 16 16 17 25 29 Storage 6 | . 14 14 11 11 11 11 9 9 9 9 9 7 7 7 7 6 6 5 5 5 5 5 5 5 5 5 5 5 5 4 4 4 4 4 4 3 Processor 7 | . . . . . 1 11 9 9 9 9 9 12 7 14 7 6 6 5 1 2 5 5 5 5 5 7 10 10 14 22 20 18 12 7 4 4 Hackware 1 | . . . . . . . 1 . . . . . . 6 4 . . . . 2 5 5 5 2 7 7 2 . . . . . . . . . Energy Gun 2 | . 8 . . . . . . . . . . . 1 7 3 1 . 4 . 1 . . . . . 4 3 2 . . 4 14 3 . 1 1 Energy Cannon 4 | . 7 7 6 . . . . . . . . . . . . 4 6 . . 5 11 11 . 5 5 12 9 12 10 . 2 3 9 13 13 4 Ballistic Gun 17 | . 1 . 33 44 10 44 44 44 43 41 44 29 27 7 11 20 19 16 6 3 10 11 . 10 11 8 10 8 9 4 2 1 3 6 7 12 Ballistic Cannon 6 | . 8 15 2 . . . . . . . . 13 12 14 13 6 6 5 15 12 5 5 . 17 10 . 4 4 5 19 12 2 7 2 2 6 Peak Build Rating 216 | 7 8 11 22 22 22 22 49 55 49 54 39 62 85 85 94 92 94 106 115 114 107 107 105 108 118 116 117 127 123 129 166 191 208 208 212 216 Average Rating 89 | 6 7 9 19 22 14 21 43 49 46 41 38 49 62 81 85 90 92 101 112 108 106 107 72 106 109 107 116 119 116 125 140 175 195 189 200 192 On Entrance 85 | . 7 8 11 22 22 21 22 48 49 41 37 39 60 85 81 78 92 94 95 115 107 107 107 105 108 118 116 117 118 108 127 164 190 202 156 198 Naked Turns 9 | . . . . . . . . . . . . . . . . . . . . . . . . . . . . . . . . . . . . 9 Heaviest Build 271 | 12 32 32 102 101 101 95 113 114 114 108 107 133 160 160 166 167 168 175 241 203 185 185 185 181 177 172 173 202 197 183 178 215 255 259 271 253 Greatest Support 64 | 26 26 20 20 20 20 20 28 28 28 28 28 28 28 24 28 40 40 40 40 44 44 44 44 44 60 38 48 54 54 42 58 52 54 52 64 64 Greatest Overweight (x) 17 | . 1 1 5 5 5 4 4 4 4 3 3 4 10 6 13 4 4 4 6 4 4 4 4 4 4 6 17 4 4 5 6 4 4 9 5 9 Average Overweight (x) 3 | . . 1 3 5 4 4 3 3 3 3 3 3 4 5 6 3 4 4 5 4 4 4 2 3 2 5 3 3 3 4 2 3 3 4 3 2 Largest Inventory Capacity 25 | 8 15 15 25 25 25 25 25 25 25 25 25 25 25 25 25 25 25 25 25 25 25 25 25 25 25 25 25 25 25 25 25 25 25 25 25 25 Average Capacity 24 | 7 14 15 22 25 25 25 25 25 25 25 25 25 25 25 25 25 25 25 25 25 25 25 25 25 25 25 25 25 25 25 25 25 25 25 25 24 Most Carried 25 | 8 15 15 25 25 25 25 25 25 25 25 25 25 25 25 25 25 25 25 25 25 25 25 25 25 25 25 25 25 25 25 25 25 25 25 25 25 Average Carried 23 | 6 14 14 21 25 19 24 24 24 23 24 24 24 24 24 24 24 24 23 24 24 24 25 23 24 23 24 24 24 24 23 24 23 24 24 23 23 Final Capacity 25 | 8 15 15 25 25 25 25 25 25 25 25 25 25 25 25 25 25 25 25 25 25 25 25 25 25 25 25 25 25 25 25 25 25 25 25 25 5 Final Carried 25 | 8 15 15 25 25 24 25 25 25 20 25 25 25 25 25 25 25 25 25 25 25 25 25 25 25 23 22 25 25 23 25 25 25 25 25 24 3 Class Distribution -------------------- 29% | Scavenger-Executioner 22% | Executioner 16% | Trapper-Gunner 7% | Mutant 6% | Scavenger-Gunner 4% | Gunner 4% | Commander-Executioner 3% | Derelict-Executioner Dominant Class ---------------- Mutant | -10/Materials Mutant | -10/Mines Gunner | -9/Materials Trapper-Gunner | -9/Mines Trapper-Mutant | -9/Exiles Trapper-Gunner | -8/Mines Trapper-Gunner | -8/Materials Trapper-Gunner | -8/Garrison Trapper-Gunner | -8/Materials Scavenger-Gunner | -8/Garrison Scavenger-Gunner | -8/Materials Scavenger-Executioner | -7/Factory Scavenger-Executioner | -7/Garrison Commander-Executioner | -7/Factory Executioner | -7/Garrison Executioner | -6/Factory Executioner | -6/DSF Scavenger-Executioner | -5/Factory Scavenger-Executioner | -5/Waste Executioner | -5/Factory Executioner | -5/Upper Caves Executioner | -5/Upper Caves Mutant | -5/Zhirov Executioner | -4/Proximity Caves Hacker-Executioner | -4/Factory Hacker-Executioner | -4/Upper Caves Derelict-Executioner | -4/Upper Caves Derelict-Executioner | -4/Warlord Scavenger-Executioner | -3/Proximity Caves Scavenger-Executioner | -3/Research Scavenger-Executioner | -3/Testing Scavenger-Executioner | -2/Research Scavenger-Executioner | -2/Quarantine Scavenger-Executioner | -2/Protoforge Scavenger-Executioner | -1/Access Scavenger-Executioner | -1/Command Resources | -11 -10 -10 -9 -9 -9 -8 -8 -8 -8 -8 -8 -7 -7 -7 -7 -6 -6 -5 -5 -5 -5 -5 -5 -4 -4 -4 -4 -4 -3 -3 -3 -2 -2 -2 -1 -1 ----------- Run | Yrd Mat Min Mat Min Exi Min Mat Gar Mat Gar Mat Fac Gar Fac Gar Fac DSF Fac Was Fac Upp Upp Zhi Pro Fac Upp Upp War Pro Res Tes Res Qua Frg Acc Com Matter Collected 37364 | 287 645 344 1327 48 300 251 2257 1217 668 1126 397 814 3417 516 2790 . 1071 1550 665 1461 940 54 168 632 1106 614 223 1124 659 89 2423 1302 1589 1826 2117 1347 Remotely 11407 | . . . . . . . . . . . . 494 517 . 1245 . . 809 583 673 . . . 147 691 . . 947 . . 606 490 632 991 1235 1347 Salvage Created 36034 | 261 493 45 1616 113 100 215 2249 1417 825 1280 701 869 2074 122 1304 . 476 1031 1246 931 471 30 423 345 606 512 100 486 410 59 2077 946 3067 3310 4572 1252 Parts 1566 | 21 31 1 126 5 2 20 127 81 41 75 43 47 88 10 47 . 22 40 11 42 14 1 6 16 19 11 2 6 25 5 107 26 121 138 168 21 Haulers Intercepted 26 | . 2 . 6 . . . 6 . . . 2 . . . . . 1 . . 1 . . . . . . . . . . 1 1 1 . 5 . Recyclers Shooed 13 | . . . . . . . 3 . . . . . . . . . . . . 4 . . . . . . . . . . 1 . . . 2 3 Parts Field Recycled . | . . . . . . . . . . . . . . . . . . . . . . . . . . . . . . . . . . . . . Retrieved Matter . | . . . . . . . . . . . . . . . . . . . . . . . . . . . . . . . . . . . . . Parts Self-Destructed 56 | . . . . . . . . . . . . . . . . . . . . . 13 . 3 14 . 7 1 . 18 . . . . . . . Prevented . | . . . . . . . . . . . . . . . . . . . . . . . . . . . . . . . . . . . . . Kills | -11 -10 -10 -9 -9 -9 -8 -8 -8 -8 -8 -8 -7 -7 -7 -7 -6 -6 -5 -5 -5 -5 -5 -5 -4 -4 -4 -4 -4 -3 -3 -3 -2 -2 -2 -1 -1 ------- Run | Yrd Mat Min Mat Min Exi Min Mat Gar Mat Gar Mat Fac Gar Fac Gar Fac DSF Fac Was Fac Upp Upp Zhi Pro Fac Upp Upp War Pro Res Tes Res Qua Frg Acc Com Combat Hostiles Destroyed 607 | . 10 8 32 . 1 3 32 33 16 26 10 17 42 3 37 . 11 25 6 17 7 . . 14 10 5 1 18 19 1 21 15 38 43 65 21 Melee 1 | . . . . . . . . . . . . . . . . . . . . . . . . . . . . 1 . . . . . . . . Guns 232 | . 5 . 16 . 1 3 31 33 16 20 10 7 21 . 10 . 4 13 2 . 3 . . 2 3 . 1 . 5 . 3 6 3 2 10 2 Cannons 231 | . 1 4 11 . . . . . . . . 7 14 2 23 . 4 12 4 16 1 . . 5 5 3 . 1 3 1 18 2 28 36 23 7 AOE 130 | . 3 4 5 . . . 1 . . 6 . 3 7 . 4 . 3 . . . 3 . . 7 . 2 . 16 11 . . 6 5 4 28 12 Classes Destroyed 28 | 3 4 1 3 . . . 3 3 1 1 . . . . . . 1 1 1 . . . . . . . 1 1 . . 1 1 1 1 . . Worker 47 | 2 3 . 6 2 . 3 10 . 2 . 1 1 . . . . . 3 . . . . . . . . . . . . 3 . 4 2 4 1 Builder 23 | . . . 5 . . 1 2 . . . . 1 . 1 . . . 1 . 4 . . . . 1 . . . . . 3 . 2 1 1 . Tunneler 12 | 6 . . . . . 3 1 . . . . . . . . . . . . . . . . . . . . . . 1 . . . . 1 . Hauler 26 | . 2 . 6 . . . 6 . . . 2 . . . . . 1 . . 1 . . . . . . . . . . 1 1 1 . 5 . Recycler 23 | 1 . . 1 1 . . 2 . . . 1 2 . . . . . . . 2 . . . . . . . . . . 4 . 2 . 4 3 Mechanic 7 | . . . . . . . 1 . 1 . . 1 2 . . . . . . . . . . . . . . . . . . 1 . . 1 . Operator 11 | . . . 2 . . . 1 . 1 . . . 1 . . . . 2 . 1 . . . . . . . . . . 1 1 . 1 . . Watcher 14 | . 3 . 3 . . . 3 . . . . . . . 1 . . . . 1 . . . . . . . . . . 1 . . 1 1 . Swarmer 123 | . 3 . 14 . . 3 2 4 . 3 . 3 12 . 8 . 4 4 . 2 3 . . 10 . . . 4 14 . . 3 7 . 17 3 Saboteur 4 | . . . . . . . . . . . . . . . . . . . . . . . . . . . . . . . . . . 3 1 . Grunt 249 | . 7 1 9 . . . 17 14 10 13 6 10 15 1 21 . . 19 . 7 1 . . 1 9 3 . 8 4 . 6 6 16 13 23 9 Brawler 15 | . . . . . . . 1 3 1 . . . 1 . 2 . . 1 . . . . . . . . . . . . . 1 1 3 . 1 Duelist 14 | . . . . . . . . . 2 . . . 2 1 1 . . . . 1 1 . . . . . . . . . . 1 1 . 2 2 Protector 4 | . . . . . . . . 1 . . . . . . . . . . . . . . . . . . . 1 . . . . . . . 2 Researcher 1 | . . . . . . . . . . . . . . . . . . . . . . . . . . . . . . . 1 . . . . . Sentry 61 | . . . 9 . . . 9 7 2 6 3 2 5 . 2 . . . . 1 . . . 1 1 . 1 . 1 1 1 1 . 1 6 1 Demolisher 1 | . . . . . . . . 1 . . . . . . . . . . . . . . . . . . . . . . . . . . . . Specialist 14 | . . . . . . . . . . 1 . . 2 . 1 . 4 . . . . . . . . . . . . . 3 . . 3 . . Hunter 31 | . . . . . . . 3 1 1 1 1 . 2 . . . 2 . . 1 . . . 2 . . . 1 . . 2 . . 8 4 2 Programmer 61 | . . . . . . . . 3 . 3 . 2 3 1 2 . . . . 4 2 . . . . 2 . 3 . . 9 1 11 3 12 . Heavy 1 | . . . . . . . . . . . . . . . . . 1 . . . . . . . . . . . . . . . . . . . Behemoth 4 | . . . . . . . . . . . . . . . . . . 1 . 1 . . . . . . . . . . . . . 1 . 1 Compactor 6 | . . . . . . . . . . . . . . . . . . . 6 . . . . . . . . . . . . . . . . . Hotshot 7 | . . . . . . . . . . . . . . . . . . . . . . . . . . . . . . . . . . 7 . . Overlord 1 | . . . . . . . . . . . . . . . . . . . . . . . . . . . . . . . . . . 1 . . Striker 2 | . . . . . . . . . . . . . . . . . . . . . . . . . . . . 1 . . . 1 . . . . Executioner 1 | . . . . . . . . . . . . . . . . . . . . . . . . . . . . . . . . 1 . . . . Fortress 1 | . . . . . . . . . . . . . . . . . . . . . . . . . . . . . . . . . 1 . . . Decomposer 2 | . . . . . . . . . . . . . . . . . . . . . . 2 . . . . . . . . . . . . . . Samaritan 1 | . . . . . . . . . . . . . . . . . . . . . . . . . . . 1 . . . . . . . . . Assembled 7 | . . 7 . . . . . . . . . . . . . . . . . . . . . . . . . . . . . . . . . . Surgeon 1 | . . . . . . . . . . . . . . . . . . . . . . . . . . . . 1 . . . . . . . . Butcher 1 | . . . . . . . . . . . . . . . . . . . . . . . . . . . . . . . . . 1 . . . Best Kill Streak 19 | 4 7 2 11 2 1 3 6 10 7 7 7 6 12 2 8 . 5 16 3 5 3 . . 5 10 3 1 11 7 1 6 7 19 12 19 11 Combat Bots Only 16 | . 3 2 5 . 1 3 5 10 7 7 5 4 12 1 8 . 5 13 3 4 3 . . 5 9 3 1 10 7 1 5 6 14 11 16 9 Max Kills in Single Turn 8 | 1 2 1 3 1 1 2 4 2 2 3 2 2 3 1 2 . 3 4 2 2 2 1 . 3 2 1 1 2 3 1 2 3 4 4 8 4 Gunslinging 1 | . . . . . . 1 1 1 1 . 1 . . . . . . . . . . . . . . . . . 1 . . . . . . . Exploded 8 | . 1 1 2 . . . 1 . . 2 . 2 3 . 2 . 3 . . . 2 . . 3 . 1 . 2 3 . . 2 4 2 8 2 Melee 1 | . . . . . . . . . . . . . . . . . . . . . . . . . . . . 1 . . . . . . . . Uniques/NPCs Destroyed 1 | . . . . . 1 . . . . . . . . . . . . . . . . . . . . . . . . . . . . . . . 8R-AWN (-9/Exiles) Combat | -11 -10 -10 -9 -9 -9 -8 -8 -8 -8 -8 -8 -7 -7 -7 -7 -6 -6 -5 -5 -5 -5 -5 -5 -4 -4 -4 -4 -4 -3 -3 -3 -2 -2 -2 -1 -1 -------- Run | Yrd Mat Min Mat Min Exi Min Mat Gar Mat Gar Mat Fac Gar Fac Gar Fac DSF Fac Was Fac Upp Upp Zhi Pro Fac Upp Upp War Pro Res Tes Res Qua Frg Acc Com Hostile Shots Fired 2989 | . 42 18 92 . 58 8 88 61 60 49 49 75 245 3 134 . 58 155 3 74 24 . . 45 86 40 4 16 58 6 133 109 114 283 235 564 Missed 932 | . 11 6 32 . 15 3 18 16 11 19 17 26 85 . 45 . 21 54 . 16 11 . . 15 27 18 1 6 16 2 35 26 38 84 87 171 Hits 2057 | . 31 12 60 . 43 5 70 45 49 30 32 49 160 3 89 . 37 101 3 58 13 . . 30 59 22 3 10 42 4 98 83 76 199 148 393 Melee 37 | . . 2 . . . . . 1 4 . . . 3 . . . . . 3 . . . . . . . . 2 . . . . 1 1 3 17 Projectile 2020 | . 31 10 60 . 43 5 70 44 45 30 32 49 157 3 89 . 37 101 . 58 13 . . 30 59 22 3 8 42 4 98 83 75 198 145 376 AOE 4 | . . . . . . . . 3 . . . . . . . . . . . . . . . . . . . . . . . . . . . 1 Critical Strikes 130 | . 1 . 1 . 25 . 3 3 4 4 1 1 3 . 5 . 1 6 2 4 . . . 2 3 2 1 . 2 . 6 3 4 13 10 20 Actively Blocked 64 | . . . . . . . . . . . . . . . . . 1 6 . 3 . . . . 3 2 1 . 2 . 6 3 4 13 10 10 Part Disruptions 5 | . . 1 . . . . . . . . . . . . . . . . . . . . . . . 1 . . . . . . 1 . 1 1 Damage Taken 33488 | . 404 173 672 . 765 41 1126 730 1339 444 477 581 1653 150 1235 . 469 1697 134 1040 227 . . 575 1257 438 71 277 985 116 2558 2021 903 2937 1846 6147 Core 4361 | . 76 2 131 . 210 6 134 137 191 73 11 21 173 . 124 . 47 126 . 76 15 . . 79 85 40 . 56 157 . 320 215 49 201 60 1546 Absorbed by Shields 8566 | . . . . . . . 81 8 . . 8 112 396 . 55 . 177 279 . . . . . . . . . 136 . . . . 836 2565 1770 2143 Redirected to Shielding 202 | . 8 . . . . . . . . . . . . . . . . . . . . . . . . . . . . . 53 44 . 97 . . Ignored by Resistances 998 | . . . . . . . . . . . . . . . . . . . . 66 . . . . . . . . . . . . 163 481 . 288 Regen/Repaired (Parts) 596 | . . . 152 . . . . . . . . . . . . . . . . . . . . . . . . 225 . . . 219 . . . . Core Remaining (%) 60 | 100 . 68 . . . 13 . . . . . . . . 54 . 94 . . . . . . 70 . . . . 70 . 75 . . 57 . . Volleys Fired 1798 | 20 55 27 85 3 19 12 86 81 29 106 22 35 220 14 85 1 21 47 17 77 32 8 72 74 32 42 24 39 60 2 63 37 76 62 77 36 Largest 8 | 2 2 2 4 4 4 4 5 5 5 5 5 6 6 4 4 1 5 5 4 5 5 1 1 6 6 6 6 6 6 6 6 6 6 6 8 8 Hottest 664 | 70 100 100 143 92 92 92 140 140 140 130 115 221 231 243 248 65 226 233 214 338 324 90 20 297 297 326 370 364 316 275 416 526 511 573 664 535 Shots Fired 5407 | 40 93 42 320 11 73 48 428 241 142 202 109 164 510 31 219 1 95 203 63 185 68 9 72 137 128 60 40 54 94 12 181 132 252 287 458 203 Gun 3025 | 40 61 . 223 11 73 48 428 241 142 138 109 109 296 14 99 . 55 137 25 53 18 . . 27 46 12 9 6 30 2 46 76 63 79 213 96 Cannon 1999 | . 16 30 91 . . . . . . . . 53 131 17 110 1 38 62 38 132 47 9 . 103 82 43 31 16 55 10 135 50 187 202 228 82 Launcher 146 | . 3 8 4 . . . . . . 6 . 2 3 . 2 . 2 4 . . 3 . . 7 . 5 . 32 9 . . 6 2 6 17 25 Special 237 | . 13 4 2 . . . . . . 58 . . 80 . 8 . . . . . . . 72 . . . . . . . . . . . . . Kinetic 3595 | 20 8 15 249 11 73 48 428 241 142 138 109 162 375 26 190 . 74 166 63 104 27 . . 64 99 13 10 7 23 12 122 39 119 129 160 129 Thermal 1617 | 20 82 19 67 . . . . . . 58 . . 132 5 27 1 19 33 . 81 38 9 72 66 29 40 27 11 38 . 43 87 131 152 281 49 Explosive 146 | . 3 8 4 . . . . . . 6 . 2 3 . 2 . 2 4 . . 3 . . 7 . 5 . 32 9 . . 6 2 6 17 25 Electromagnetic 5 | . . . . . . . . . . . . . . . . . . . . . . . . . . 2 3 . . . . . . . . . Entropic 44 | . . . . . . . . . . . . . . . . . . . . . . . . . . . . 4 24 . 16 . . . . . Robot Hit Streak 39 | 5 12 9 11 3 10 10 13 18 8 39 7 10 34 4 10 . 9 16 8 6 4 2 17 6 7 10 10 5 7 7 9 11 10 11 9 10 Robot Miss Streak 15 | 2 4 5 6 1 4 1 8 8 7 6 2 6 7 3 9 . 5 5 3 9 7 1 2 7 8 4 2 3 4 1 6 15 8 8 7 8 Penetration Max 3 | . . . . . . . 1 1 1 2 . . 1 . 1 . 1 1 1 . . . . 1 . . . . 1 . 1 1 2 3 2 1 Secondary Targets 27 | . . . 1 . . 1 5 8 1 6 3 . 1 . . . . . . . . . . . . . . . 1 . . . . . . . Max Gunslinging Chain 1 | . . . 1 . . 1 1 1 1 1 1 . 1 . . . . . . . . . . . . . . . 1 . . . . . . . Shots Hit Robots 2793 | 27 50 18 148 4 53 32 249 135 84 128 57 92 321 13 117 . 50 118 35 76 22 3 70 31 57 29 13 15 35 10 118 66 95 145 183 94 Core Hits 1825 | 12 27 11 70 3 13 10 142 103 66 79 31 55 174 6 86 . 30 60 9 34 14 1 20 19 58 15 4 82 52 4 60 51 70 118 156 80 Critical Kills 65 | . . . 1 . . . . 1 . 1 . . . . . . . . 2 1 . . . 1 2 . . . . . 11 3 9 18 13 2 Critical Parts Destroyed 61 | . . . 1 . . 1 1 . . 2 . 1 1 . . . . 1 1 . . . . 1 . 2 . . 2 . 14 6 9 10 6 2 Critical Strikes 197 | 1 7 . 3 . 1 1 1 1 . 6 . 2 8 1 3 . . 8 9 6 . . . 3 4 2 1 1 4 . 30 19 22 29 19 5 Burn 14 | 1 6 . . . . . . . . . . . . . . . . . . . . . . . . . . . . . 1 6 . . . . Meltdown 10 | . . . . . . . . . . . . . . . . . . . . 1 . . . . 1 . . . . . . . 1 1 6 . Destroy 123 | . . . 2 . 1 1 1 1 . 3 . 1 1 . . . . 1 7 . . . . 2 1 2 . . 2 . 25 9 17 28 13 5 Blast 39 | . 1 . 1 . . . . . . . . 1 3 1 3 . . 7 2 5 . . . 1 2 . . . . . 4 4 4 . . . Sever 7 | . . . . . . . . . . 3 . . 4 . . . . . . . . . . . . . . . . . . . . . . . Impale 1 | . . . . . . . . . . . . . . . . . . . . . . . . . . . 1 . . . . . . . . . Detonate 1 | . . . . . . . . . . . . . . . . . . . . . . . . . . . . . 1 . . . . . . . Sunder 2 | . . . . . . . . . . . . . . . . . . . . . . . . . . . . 1 1 . . . . . . . Melee Attacks 173 | . . . 2 . 4 . 4 7 2 36 . 8 31 . 7 . . 1 . . . . 6 . . 7 1 3 18 1 27 . 8 . . . Kinetic 3 | . . . . . . . . . . . . . . . . . . . . . . . . . . . . . . . . . 3 . . . Impact 61 | . . . 1 . . . 1 3 2 36 . 8 10 . . . . . . . . . . . . . . . . . . . . . . . Slashing 3 | . . . . . . . 3 . . . . . . . . . . . . . . . . . . . . . . . . . . . . . Piercing 66 | . . . . . . . . . . . . . . . 7 . . . . . . . . . . 7 1 . 18 1 27 . 5 . . . Entropic 3 | . . . . . . . . . . . . . . . . . . . . . . . . . . . . 3 . . . . . . . . Sneak Attacks 51 | . . . 1 . 4 . . 4 . . . . 21 . . . . 1 . . . . 6 . . . 1 . . 1 9 . 3 . . . Combat Hostiles . | . . . . . . . . . . . . . . . . . . . . . . . . . . . . . . . . . . . . . Follow-up Attacks . | . . . . . . . . . . . . . . . . . . . . . . . . . . . . . . . . . . . . . Damage Inflicted 103962 | 281 834 586 3043 66 742 490 4628 2873 1823 2446 953 2103 6899 788 5344 . 1876 4790 2347 4389 1047 100 763 1435 2090 1390 362 4805 2805 362 4741 4711 5239 6821 11494 8496 Guns 35879 | 281 547 . 1503 66 742 490 4242 2873 1823 1395 953 1111 3514 154 1268 . 721 2007 391 577 177 . . 332 591 208 112 106 806 49 1394 1392 844 1063 2706 1441 Cannons 37224 | . 126 291 1067 . . . . . . . . 682 2031 634 3273 . 891 2331 1956 3707 641 100 . 495 1120 306 179 344 647 242 2102 700 3247 4711 3988 1413 Explosions 25831 | . 161 295 473 . . . 386 . . 419 . 310 551 . 404 . 264 452 . 105 229 . . 608 379 487 . 4065 1352 . . 2619 783 1047 4800 5642 Melee 2733 | . . . . . . . . . . . . . . . 310 . . . . . . . . . . 389 71 290 . 71 1237 . 365 . . . Ramming 8 | . . . . . . . . . . . . . . . . . . . . . . . . . . . . . . . 8 . . . . . Kinetic 51277 | 93 56 153 1772 66 742 490 4242 2873 1823 1395 953 1793 4532 770 4364 . 1424 3822 2347 3240 375 . . 657 1366 282 162 106 371 291 2340 660 1829 1982 1812 2094 Thermal 22699 | 188 617 138 798 . . . . . . 632 . . 1816 18 266 . 188 516 . 1149 443 100 763 170 345 198 104 190 270 . 488 1432 2352 3792 4966 760 Explosive 25060 | . 161 295 473 . . . 386 . . 419 . 310 551 . 404 . 264 452 . . 229 . . 608 . 487 . 4065 1149 . . 2619 783 1047 4716 5642 Electromagnetic 438 | . . . . . . . . . . . . . . . . . . . . . . . . . 379 34 25 . . . . . . . . . Impact . | . . . . . . . . . . . . . . . . . . . . . . . . . . . . . . . . . . . . . Slashing . | . . . . . . . . . . . . . . . . . . . . . . . . . . . . . . . . . . . . . Piercing 2353 | . . . . . . . . . . . . . . . 310 . . . . . . . . . . 389 71 . . 71 1237 . 275 . . . Entropic 2127 | . . . . . . . . . . . . . . . . . . . . . . . . . . . . 444 1015 . 668 . . . . . Highest Corruption 20 | . 1 6 4 4 4 4 . . . . . 2 3 . . . . . 10 10 7 7 7 7 . 2 2 2 1 . 20 . 5 8 13 14 Average Corruption 5 | . 1 2 4 4 4 4 . . . . . 1 2 . . . . . 9 6 7 7 7 7 . 1 2 1 1 . 11 . 3 5 7 13 Corruption Purged 9 | . . . . . . . . . . . . . 3 . . . . . . 5 . . . . . . . . 1 . . . . . . . Corruption Blocked . | . . . . . . . . . . . . . . . . . . . . . . . . . . . . . . . . . . . . . Effects 554 | . 13 12 54 8 24 8 . . . . . 7 18 . . . . . 9 56 40 33 15 64 . 11 14 1 2 . 42 . 24 27 34 38 Message Errors 128 | . 5 2 8 . 2 2 . . . . . 2 3 . . . . . 4 20 9 9 1 17 . 1 4 . 1 . 11 . 7 5 9 6 Matter Fused 129 | . 3 4 13 3 6 1 . . . . . . 3 . . . . . 2 13 11 11 8 11 . 4 3 . . . 9 . 4 5 7 8 Heat Flow Errors 69 | . 1 2 12 1 1 . . . . . . 1 . . . . . . 1 5 7 4 2 11 . 1 1 1 . . 5 . 2 4 5 2 Energy Discharges 68 | . 1 2 8 2 4 . . . . . . . 6 . . . . . 1 10 2 3 . 7 . . 2 . 1 . 5 . 5 4 3 2 Parts Rejected 3 | . . . . . . . . . . . . . . . . . . . 1 . . . . . . . . . . . . . . 1 . 1 Parts Fused 4 | . . . . . . . . . . . . 1 . . . . . . . 1 . . . . . . 1 . . . 1 . . . . . Data Loss (minor) 56 | . 1 1 1 1 4 2 . . . . . . 1 . . . . . . 3 9 2 3 5 . 3 2 . . . 5 . 3 2 4 4 Data Loss (major) 29 | . . 1 5 . 2 2 . . . . . . 3 . . . . . . 2 . 2 1 5 . 1 . . . . . . 1 2 . 2 Misfires 19 | . 1 . 4 . . . . . . . . . 1 . . . . . . 1 . 1 . 5 . . 1 . . . 2 . . . 2 1 Alerts 13 | . 1 . 2 1 2 1 . . . . . . . . . . . . . . 2 1 . 1 . 1 . . . . 1 . . . . . Misdirections 1 | . . . . . . . . . . . . . . . . . . . . . . . . . . . . . . . . . . . . 1 Weapon Failures 35 | . . . 1 . 3 . . . . . . 3 1 . . . . . . 1 . . . 2 . . . . . . 3 . 2 4 4 11 Overload Shots . | . . . . . . . . . . . . . . . . . . . . . . . . . . . . . . . . . . . . . Overflow Damage 3420 | . . 8 27 . . . 46 . . 9 . 24 67 85 440 . 20 207 . 477 106 17 39 26 14 142 122 221 165 . 210 84 299 41 313 211 Projectiles 1788 | . . . 6 . . . . . . 9 . . 55 85 345 . 4 197 . 412 106 17 39 . 14 . . 54 71 . 90 11 114 41 118 . Explosions 1048 | . . 8 21 . . . 46 . . . . 24 12 . 43 . 16 10 . 65 . . . 26 . 35 . 81 94 . . 73 88 . 195 211 Melee 584 | . . . . . . . . . . . . . . . 52 . . . . . . . . . . 107 122 86 . . 120 . 97 . . . Knockbacks 144 | . . 3 . . . . . . . . . 10 30 4 15 . 3 7 . 9 1 . . . 8 1 . . . . 29 6 6 8 2 2 Impact . | . . . . . . . . . . . . . . . . . . . . . . . . . . . . . . . . . . . . . Kinetic 131 | . . 3 . . . . . . . . . 10 27 3 14 . 2 6 . 8 1 . . . 7 1 . . . . 26 6 6 7 2 2 Secondary 13 | . . . . . . . . . . . . . 3 1 1 . 1 1 . 1 . . . . 1 . . . . . 3 . . 1 . . Self-Inflicted Damage 825 | . 10 10 . . . . 123 . . . . . . . . . . 66 . . . . . 26 68 . . . 82 . 4 . . 94 136 206 Shots 16 | . 1 1 . . . . 2 . . . . . . . . . . 1 . . . . . 1 1 . . . 2 . . . . 1 3 3 Rammed 1 | . . . . . . . . . . . . . . . . . . . . . . . . . . . . . . . 1 . . . . . Targets Rammed 1 | . . . . . . . . . . . . . . . . . . . . . . . . . . . . . . . 1 . . . . . Kicked . | . . . . . . . . . . . . . . . . . . . . . . . . . . . . . . . . . . . . . Crushed . | . . . . . . . . . . . . . . . . . . . . . . . . . . . . . . . . . . . . . Highest Temperature 582 | 60 503 242 260 209 120 42 221 303 203 61 191 325 404 252 413 20 . 381 194 479 201 215 193 206 197 197 191 159 147 4 304 192 84 136 582 344 Average Temperature 82 | 26 117 62 41 121 67 13 62 103 92 14 71 102 98 88 84 15 . 129 58 56 41 89 94 66 120 55 71 25 67 4 110 47 16 72 133 106 Received Heat Transfer 5681 | . 219 98 195 . . . 432 222 306 162 231 279 394 33 579 . 12 669 . 183 36 . . 57 327 51 9 22 162 18 12 171 69 291 139 303 Effects 19 | . 10 . . . . . 1 . . . . . 1 . . . . 1 . 1 . . . . . . . . . . 1 . . . 4 . Shutdowns 7 | . 2 . . . . . . . . . . . 1 . . . . 1 . 1 . . . . . . . . . . . . . . 2 . Energy Bleed 2 | . 1 . . . . . 1 . . . . . . . . . . . . . . . . . . . . . . . . . . . . . Interference 8 | . 5 . . . . . . . . . . . . . . . . . . . . . . . . . . . . . 1 . . . 2 . Short Circuit 2 | . 2 . . . . . . . . . . . . . . . . . . . . . . . . . . . . . . . . . . . Siege Activations . | . . . . . . . . . . . . . . . . . . . . . . . . . . . . . . . . . . . . . Martial Activations . | . . . . . . . . . . . . . . . . . . . . . . . . . . . . . . . . . . . . . Shielding Activations . | . . . . . . . . . . . . . . . . . . . . . . . . . . . . . . . . . . . . . Robots Disrupted 3 | . . . . . . . . . . . . . . . . . . . . . . . . . 2 . 1 . . . . . . . . . Combat Hostiles 3 | . . . . . . . . . . . . . . . . . . . . . . . . . 2 . 1 . . . . . . . . . Robots Corrupted 2 | . . . . . . . . . . . . . . 1 . . . . . . . . . . 1 . . . . . . . . . . . Combat Hostiles 2 | . . . . . . . . . . . . . . 1 . . . . . . . . . . 1 . . . . . . . . . . . Parts Fried 5 | . . . . . . . . . . . . . . 1 1 . . . . . . . . . 3 . . . . . . . . . . . Impact Corruptions 2 | . . . . . . . . . . . . . . 1 1 . . . . . . . . . . . . . . . . . . . . . Robots Melted 13 | . 1 . . . . . . . . . . . 1 . . . . . . 1 . . . . 1 . . . . . . 1 1 1 6 . Combat Hostiles 10 | . 1 . . . . . . . . . . . . . . . . . . 1 . . . . 1 . . . . . . 1 1 1 4 . Parts Melted 45 | 1 2 . 1 . . . . 1 1 . . . 2 . . . . . . 4 . . . . 1 1 . . . . . 6 5 4 16 . Heat Transferred 32147 | 629 2220 296 1480 . . . . . . 2109 . . 4469 37 592 . 259 740 . 1299 533 111 2246 185 370 224 124 237 250 . 592 2597 2035 3112 4799 602 Parts Sabotaged . | . . . . . . . . . . . . . . . . . . . . . . . . . . . . . . . . . . . . . Parts Stolen . | . . . . . . . . . . . . . . . . . . . . . . . . . . . . . . . . . . . . . Parts Stripped 18 | . . . . . . . . . . . . . . . . . . . . . . . . . . . . . . . . . 18 . . . Power Chain Reactions 1 | . . . . . . . . . . . . . . . . . . . . . . . . . . . . . . . . . . . 1 . Alert | -11 -10 -10 -9 -9 -9 -8 -8 -8 -8 -8 -8 -7 -7 -7 -7 -6 -6 -5 -5 -5 -5 -5 -5 -4 -4 -4 -4 -4 -3 -3 -3 -2 -2 -2 -1 -1 ------- Run | Yrd Mat Min Mat Min Exi Min Mat Gar Mat Gar Mat Fac Gar Fac Gar Fac DSF Fac Was Fac Upp Upp Zhi Pro Fac Upp Upp War Pro Res Tes Res Qua Frg Acc Com Maximum Alert Level 5 | . . . 2 . . . 1 4 3 5 3 2 5 5 5 4 4 3 1 1 . . . . 2 . . . . . 1 2 3 5 5 5 Low Security (%) 29 | 100 100 100 6 100 . 100 44 7 . . . . . . . . . . 5 82 . . . . 40 . . . . 100 79 20 25 . . . Level 1 17 | . . . 58 . . . 55 13 . . . 15 . . . . . . 94 17 . . . . 31 . . . . . 20 27 9 . . . Level 2 14 | . . . 34 . . . . 20 24 5 . 84 11 . . . . . . . . . . . 28 . . . . . . 51 54 14 . . Level 3 10 | . . . . . . . . 27 75 36 100 . 6 . . . 9 99 . . . . . . . . . . . . . . 10 29 6 . Level 4 11 | . . . . . . . . 30 . 45 . . 28 58 7 100 90 . . . . . . . . . . . . . . . . 26 17 . Level 5 14 | . . . . . . . . . . 12 . . 53 41 92 . . . . . . . . . . . . . . . . . . 29 53 42 High Security 2 | . . . . . . . . . . . . . . . . . . . . . . . . . . . . . . . . . . . 22 57 Max Security . | . . . . . . . . . . . . . . . . . . . . . . . . . . . . . . . . . . . . . Sterilizations 1 | . . . . . . . . . . . . . . . . . 1 . . . . . . . . . . . . . . . . . . . Peak Influence 3226 | 10 127 37 518 138 . 70 331 1578 853 1877 1033 662 3152 1901 3014 1582 1360 1033 352 274 . . . . 432 . . . . 34 334 530 905 1720 3226 2840 Initial 2064 | . . 21 . 133 . . . 147 768 546 914 436 452 1654 1313 1582 1059 714 352 133 . . . . . . . . . . 7 187 199 494 992 2064 Average 768 | 1 37 3 366 57 . 17 173 810 752 1191 952 466 1722 1633 2262 1551 1224 897 264 133 . . . . 236 . . . . 2 84 360 468 1186 2148 2310 Influence Increases 25205 | 45 520 79 1188 15 . 105 1152 1501 616 1341 304 530 2740 581 1861 12 301 813 18 824 200 . 15 310 576 130 20 365 410 39 858 880 1398 1628 2774 1056 Destroy 0b10 Robot/C 12460 | . 200 20 680 . . 60 640 720 340 560 200 340 980 260 860 . 220 500 . 360 140 . . 280 200 100 20 340 380 20 440 300 760 860 1300 380 Destroy 0b10 Robot/NC 960 | 45 40 . 120 15 . 35 130 5 25 10 20 25 50 15 20 . 5 30 . 45 10 . 15 . 5 10 . 10 . 5 70 15 45 25 85 30 Destroy Leader 1980 | . 60 10 190 . . 10 208 30 92 50 64 80 70 50 70 . 40 70 . 74 20 . . 30 30 20 . . 30 10 74 52 122 122 232 70 Allied During Kill 695 | . . . 17 . . . . 25 26 13 . . 300 236 67 . . . . 11 . . . . . . . . . . . . . . . . Successful Hack 351 | . 57 . 23 . . . 77 30 10 14 4 9 16 10 28 12 . 14 . 23 . . . . . . . . . . . . . . . 24 Select Force Hacks 60 | . 60 . . . . . . . . . . . . . . . . . . . . . . . . . . . . . . . . . . . Disable Machine 1455 | . . . 15 . . . 45 30 . 30 15 45 75 . 75 . 15 45 . 105 . . . . 210 . . . . . 120 30 165 270 120 45 Anti-Garrison Action 3450 | . . . . . . . . 650 . 550 . . 1150 . 600 . . . . . . . . . . . . . . . . 150 . . 350 . Destroy Structure 2954 | . 28 49 38 . . . 37 11 3 84 1 31 99 10 96 . 21 64 18 206 . . . . 56 . . . . 4 124 228 306 321 687 432 Partial Spotted 30 | . . . . . . . . . . . . . . . . . . . . . . . . . . . . . . . 15 . . 15 . . Lose Combat Pursuer 810 | . 75 . 105 . . . 15 . 120 30 . . . . 45 . . 90 . . 30 . . . 75 . . 15 . . 15 105 . 15 . 75 Influence Decreases 22505 | 45 465 134 845 358 . 105 925 150 1354 304 1221 844 234 1856 724 1512 455 1166 835 841 353 20 15 310 232 458 36 128 647 25 538 859 874 853 1202 1582 Entered New Map 11373 | . . 34 . 210 . . . 80 810 294 963 524 194 1498 564 1432 455 646 655 57 65 4 . . . 128 4 . 237 . 7 147 156 385 662 1162 Time Decay 8516 | 45 435 100 665 148 . 105 642 . 254 . 238 270 . 318 . 80 . 310 150 577 288 16 15 304 152 300 32 128 330 25 441 622 568 368 470 120 Lost Part 1226 | . 30 . 10 . . . 10 10 80 10 20 50 20 . 20 . . 60 30 30 . . . 6 80 30 . . 80 . 90 90 . 100 70 300 Lost Ally 367 | . . . 20 . . . . 60 60 . . . 20 40 140 . . . . 27 . . . . . . . . . . . . . . . . Purge Threat 1023 | . . . 150 . . . 273 . 150 . . . . . . . . 150 . 150 . . . . . . . . . . . . 150 . . . Squads Dispatched 119 | . 4 . 2 . . . 10 . 9 . 3 5 . 6 . 1 2 5 . 7 . . . . 6 . . . . 1 7 2 13 8 19 9 Investigation 24 | . 3 . 1 . . . 5 . 2 . . 1 . 2 . 1 . 2 . . . . . . 2 . . . . . 1 1 1 . 2 . Extermination 18 | . . . . . . . . . . . . 1 . 1 . . . . . 4 . . . . . . . . . 1 3 . 4 2 2 . Reinforcement 28 | . 1 . 1 . . . 1 . 3 . 2 1 . 1 . . 2 1 . 3 . . . . . . . . . . . 1 5 3 2 1 Assault 28 | . . . . . . . . . 1 . 1 . . 1 . . . 1 . . . . . . 1 . . . . . . . . 3 12 8 Garrison 21 | . . . . . . . 4 . 3 . . 2 . 1 . . . 1 . . . . . . 3 . . . . . 3 . 3 . 1 . Intercept . | . . . . . . . . . . . . . . . . . . . . . . . . . . . . . . . . . . . . . Searches Triggered . | . . . . . . . . . . . . . . . . . . . . . . . . . . . . . . . . . . . . . Construction Impeded 3 | . . . . . . . . . . . . . . . . . . . . 1 . . . . . . . . . . . . . 1 1 . Haulers Reinforced 2 | . . . . . . . . . . . . . . . . . . . . 1 . . . . . . . . . . . 1 . . . . Active Scanning Responses . | . . . . . . . . . . . . . . . . . . . . . . . . . . . . . . . . . . . . . Cargo Convoy Interrupts . | . . . . . . . . . . . . . . . . . . . . . . . . . . . . . . . . . . . . . Stealth | -11 -10 -10 -9 -9 -9 -8 -8 -8 -8 -8 -8 -7 -7 -7 -7 -6 -6 -5 -5 -5 -5 -5 -5 -4 -4 -4 -4 -4 -3 -3 -3 -2 -2 -2 -1 -1 --------- Run | Yrd Mat Min Mat Min Exi Min Mat Gar Mat Gar Mat Fac Gar Fac Gar Fac DSF Fac Was Fac Upp Upp Zhi Pro Fac Upp Upp War Pro Res Tes Res Qua Frg Acc Com Distress Signals 41 | . 1 2 4 . . . 7 . 2 . . 1 . . . . . 1 . 1 . . . . . . . . . . . 8 4 1 5 4 Communications Jammed 7 | . . . . . . . . . . . . . . . . . . . . . . . . . . . . . . . 6 1 . . . . Distress Signals 6 | . . . . . . . . . . . . . . . . . . . . . . . . . . . . . . . 5 1 . . . . Times Spotted 841 | . 19 10 45 . 1 4 58 37 28 26 16 18 50 13 39 . 10 34 6 21 9 . . 10 15 5 1 76 11 1 30 38 37 53 73 47 Peak Tracking Total 18 | . 7 2 6 . 2 4 6 6 7 4 5 3 9 4 6 . 4 10 3 4 4 . . 4 5 3 1 11 7 1 6 8 8 8 9 18 Tactical Retreats 33 | . 2 . 5 . . . 1 . 6 1 . . . . 3 . . 2 . . 2 . . . 1 . . 1 . . 1 5 . 1 . 2 Traps | -11 -10 -10 -9 -9 -9 -8 -8 -8 -8 -8 -8 -7 -7 -7 -7 -6 -6 -5 -5 -5 -5 -5 -5 -4 -4 -4 -4 -4 -3 -3 -3 -2 -2 -2 -1 -1 ------- Run | Yrd Mat Min Mat Min Exi Min Mat Gar Mat Gar Mat Fac Gar Fac Gar Fac DSF Fac Was Fac Upp Upp Zhi Pro Fac Upp Upp War Pro Res Tes Res Qua Frg Acc Com Traps Triggered 50 | . 2 . . . . . 3 7 . 8 . . 7 . 1 . 1 2 . 1 . . . . 3 . . . . . . . 3 3 7 2 Indirectly 1 | . . . . . . . . . . . . . . . . . . . . . . . . . 1 . . . . . . . . . . . Trap Hack Attempts 88 | . . . 88 . . . . . . . . . . . . . . . . . . . . . . . . . . . . . . . . . Triggered . | . . . . . . . . . . . . . . . . . . . . . . . . . . . . . . . . . . . . . Disarmed 1 | . . . 1 . . . . . . . . . . . . . . . . . . . . . . . . . . . . . . . . . Reprogrammed 9 | . . . 9 . . . . . . . . . . . . . . . . . . . . . . . . . . . . . . . . . Reused 2 | . . . . . 2 . . . . . . . . . . . . . . . . . . . . . . . . . . . . . . . Traps Extracted 9 | . . . 9 . . . . . . . . . . . . . . . . . . . . . . . . . . . . . . . . . Installed 2 | . . . . . 2 . . . . . . . . . . . . . . . . . . . . . . . . . . . . . . . Triggered . | . . . . . . . . . . . . . . . . . . . . . . . . . . . . . . . . . . . . . Most Traps Carried 9 | . . . 9 9 9 7 7 7 7 7 7 7 7 . . . . . . . . . . . . . . . . . . . . . . . Machines | -11 -10 -10 -9 -9 -9 -8 -8 -8 -8 -8 -8 -7 -7 -7 -7 -6 -6 -5 -5 -5 -5 -5 -5 -4 -4 -4 -4 -4 -3 -3 -3 -2 -2 -2 -1 -1 ---------- Run | Yrd Mat Min Mat Min Exi Min Mat Gar Mat Gar Mat Fac Gar Fac Gar Fac DSF Fac Was Fac Upp Upp Zhi Pro Fac Upp Upp War Pro Res Tes Res Qua Frg Acc Com Machines Disabled 137 | . . . 1 . 1 . 3 11 . 7 1 3 16 . 12 . 1 3 . 7 . . . . 14 . . 2 3 . 8 3 11 18 9 3 Max in Single Turn 10 | . . . 1 . 1 . 2 1 . 1 1 1 1 . 1 . 1 1 . 2 . . . . 10 . . 1 1 . 1 1 2 5 1 1 Garrison Access 5 | . . . . . . . . . . . . . . . . . . . . . . . . . . . . . . . . 3 . . 2 . Garrison Relay 24 | . . . . . . . . 8 . 5 . . 6 . 5 . . . . . . . . . . . . . . . . . . . . . Phase Generator 3 | . . . . . . . . 1 . . . . 1 . 1 . . . . . . . . . . . . . . . . . . . . . Machines Repaired . | . . . . . . . . . . . . . . . . . . . . . . . . . . . . . . . . . . . . . Machines Dismantled 10 | . . . . . . . . 1 . . . 1 2 . 2 . . . . . . . . . . . . 1 . . . . . . 3 . Machines Sabotaged . | . . . . . . . . . . . . . . . . . . . . . . . . . . . . . . . . . . . . . Overloaded Fab Kills . | . . . . . . . . . . . . . . . . . . . . . . . . . . . . . . . . . . . . . Hacking | -11 -10 -10 -9 -9 -9 -8 -8 -8 -8 -8 -8 -7 -7 -7 -7 -6 -6 -5 -5 -5 -5 -5 -5 -4 -4 -4 -4 -4 -3 -3 -3 -2 -2 -2 -1 -1 --------- Run | Yrd Mat Min Mat Min Exi Min Mat Gar Mat Gar Mat Fac Gar Fac Gar Fac DSF Fac Was Fac Upp Upp Zhi Pro Fac Upp Upp War Pro Res Tes Res Qua Frg Acc Com Machines Accessed 116 | . 7 . 13 . 2 . 17 4 2 3 3 3 3 4 3 3 . 7 . 7 . . 5 1 2 . . 3 1 . 11 1 7 1 2 1 Terminals 73 | . 5 . 10 . . . 11 4 1 3 2 . 3 1 3 2 . 5 . 5 . . . 1 1 . . . 1 . 7 . 5 1 1 1 Fabricators 5 | . . . . . . . . . . . . 2 . 1 . . . . . 1 . . . . . . . . . . 1 . . . . . Repair Stations 8 | . . . 2 . . . 2 . . . . . . . . . . . . 1 . . . . . . . . . . 2 . 1 . . . Recycling Units 3 | . 2 . . . . . 1 . . . . . . . . . . . . . . . . . . . . . . . . . . . . . Scanalyzers 8 | . . . 1 . . . 2 . . . 1 . . 1 . 1 . 1 . . . . . . 1 . . . . . . . . . . . Garrison Access 9 | . . . . . . . 1 . 1 . . 1 . 1 . . . 1 . . . . . . . . . . . . 1 1 1 . 1 . Total Hacks 336 | . 29 . 36 . 2 . 52 6 5 7 11 9 9 33 8 9 . 12 . 15 . . 26 1 6 . . 8 5 . 20 4 15 2 4 2 Successful 175 | . 17 . 22 . 2 . 30 4 4 2 6 5 1 19 3 3 . 4 . 4 . . 26 1 2 . . 8 5 . 1 . 4 . 1 1 Failed 161 | . 12 . 14 . . . 22 2 1 5 5 4 8 14 5 6 . 8 . 11 . . . . 4 . . . . . 19 4 11 2 3 1 Catastrophic 48 | . 4 . 6 . . . 4 2 . 2 . 1 4 1 1 1 . 6 . 1 . . . . 1 . . . . . 10 1 2 . 1 . Database Lockouts . | . . . . . . . . . . . . . . . . . . . . . . . . . . . . . . . . . . . . . Manual 98 | . 22 . 19 . 1 . 23 . 4 1 4 1 2 5 . 1 . . . 8 . . . . . . . 1 . . . 2 2 . 2 . Terminals 182 | . 23 . 22 . . . 32 6 3 7 4 . 9 3 8 5 . 9 . 12 . . . 1 4 . . . 5 . 14 . 10 2 1 2 Fabricators 13 | . . . . . . . . . . . . 7 . 2 . . . . . 2 . . . . . . . . . . 2 . . . . . Repair Stations 17 | . . . 8 . . . 3 . . . . . . . . . . . . 1 . . . . . . . . . . 2 . 3 . . . Recycling Units 7 | . 6 . . . . . 1 . . . . . . . . . . . . . . . . . . . . . . . . . . . . . Scanalyzers 58 | . . . 6 . . . 13 . . . 7 . . 24 . 4 . 2 . . . . . . 2 . . . . . . . . . . . Garrison Access 23 | . . . . . . . 3 . 2 . . 2 . 4 . . . 1 . . . . . . . . . . . . 2 4 2 . 3 . Terminal Hacks 83 | . 7 . 4 . 2 . 9 4 1 1 . . 1 . 3 1 . 2 . 3 . . 26 1 . . . 8 5 . 1 . 3 . . 1 Record 28 | . . . . . 1 . . . . . . . . . . . . . . . . . 14 1 . . . 7 5 . . . . . . . Part Schematic 10 | . 4 . 1 . . . 1 . . . . . . . . . . . . . . . 4 . . . . . . . . . . . . . Robot Schematic 1 | . 1 . . . . . . . . . . . . . . . . . . . . . . . . . . . . . . . . . . . Robot Analysis 4 | . . . . . . . . . . . . . . . . . . . . . . . 4 . . . . . . . . . . . . . Prototype ID Bank 9 | . 2 . 1 . . . 2 . . . . . . . . . . . . . . . 4 . . . . . . . . . . . . . Open Door 2 | . . . . . . . . 1 . . . . . . . . . . . . . . . . . . . 1 . . . . . . . . Open DSF 1 | . . . . . . . . . . . . . . . . 1 . . . . . . . . . . . . . . . . . . . . Branch Access Points 1 | . . . . . . . . . . . . . . . . . . . . 1 . . . . . . . . . . . . . . . . Emergency Access Points 3 | . . . . . . . . 1 . . . . . . 1 . . . . . . . . . . . . . . . . . . . . 1 Terminal Index 1 | . . . . . . . . . . . . . . . . . . 1 . . . . . . . . . . . . . . . . . . Alert Level 1 | . . . . . . . . . . . . . . . . . . . . . . . . . . . . . . . . . 1 . . . Unreport Threat 7 | . . . 1 . . . 2 . 1 . . . . . . . . 1 . 1 . . . . . . . . . . . . 1 . . . Locate Traps 5 | . . . 1 . . . 1 . . . . . . . . . . . . 1 . . . . . . . . . . 1 . 1 . . . Hauler Manifests 1 | . . . . . . . 1 . . . . . . . . . . . . . . . . . . . . . . . . . . . . . Zone Layout 2 | . . . . . . . 2 . . . . . . . . . . . . . . . . . . . . . . . . . . . . . Garrison Registry 1 | . . . . . . . . . . . . . . . 1 . . . . . . . . . . . . . . . . . . . . . Patrol Navigation 2 | . . . . . . . . 1 . 1 . . . . . . . . . . . . . . . . . . . . . . . . . . Security Stations 3 | . . . . . . . . 1 . . . . 1 . 1 . . . . . . . . . . . . . . . . . . . . . Proto ID Catalog 1 | . . . . . 1 . . . . . . . . . . . . . . . . . . . . . . . . . . . . . . . Fabricator Hacks 4 | . . . . . . . . . . . . 4 . . . . . . . . . . . . . . . . . . . . . . . . Network Status 1 | . . . . . . . . . . . . 1 . . . . . . . . . . . . . . . . . . . . . . . . Load Schematic 1 | . . . . . . . . . . . . 1 . . . . . . . . . . . . . . . . . . . . . . . . Build 2 | . . . . . . . . . . . . 2 . . . . . . . . . . . . . . . . . . . . . . . . Repair Station Hacks 8 | . . . 5 . . . 2 . . . . . . . . . . . . . . . . . . . . . . . . . 1 . . . Scan Component 5 | . . . 3 . . . 1 . . . . . . . . . . . . . . . . . . . . . . . . . 1 . . . Repair 3 | . . . 2 . . . 1 . . . . . . . . . . . . . . . . . . . . . . . . . . . . . Recycling Unit Hacks 3 | . 2 . . . . . 1 . . . . . . . . . . . . . . . . . . . . . . . . . . . . . Retrieve Components 3 | . 2 . . . . . 1 . . . . . . . . . . . . . . . . . . . . . . . . . . . . . Scanalyzer 42 | . . . 5 . . . 9 . . . 6 . . 16 . 2 . 2 . . . . . . 2 . . . . . . . . . . . Insert Component 24 | . . . 3 . . . 5 . . . 3 . . 8 . 2 . 1 . . . . . . 2 . . . . . . . . . . . Analyze 18 | . . . 2 . . . 4 . . . 3 . . 8 . . . 1 . . . . . . . . . . . . . . . . . . Garrison Access Hacks 4 | . . . . . . . 1 . 1 . . 1 . 1 . . . . . . . . . . . . . . . . . . . . . . Unlock Access 4 | . . . . . . . 1 . 1 . . 1 . 1 . . . . . . . . . . . . . . . . . . . . . . Unauthorized Hacks 31 | . 8 . 8 . . . 8 . 2 1 . . . 2 . . . . . 1 . . . . . . . . . . . . . . 1 . Terminals 24 | . 6 . 8 . . . 7 . 1 1 . . . 1 . . . . . . . . . . . . . . . . . . . . . . Assimilate 2 | . . . 2 . . . . . . . . . . . . . . . . . . . . . . . . . . . . . . . . . Operators 3 | . 1 . 1 . . . 1 . . . . . . . . . . . . . . . . . . . . . . . . . . . . . Skim 15 | . 5 . 5 . . . 5 . . . . . . . . . . . . . . . . . . . . . . . . . . . . . Search 3 | . . . . . . . 1 . 1 . . . . 1 . . . . . . . . . . . . . . . . . . . . . . Override 1 | . . . . . . . . . . 1 . . . . . . . . . . . . . . . . . . . . . . . . . . Fabricators 1 | . . . . . . . . . . . . . . . . . . . . 1 . . . . . . . . . . . . . . . . Liberate 1 | . . . . . . . . . . . . . . . . . . . . 1 . . . . . . . . . . . . . . . . Repair Stations . | . . . . . . . . . . . . . . . . . . . . . . . . . . . . . . . . . . . . . Recycling Units 2 | . 2 . . . . . . . . . . . . . . . . . . . . . . . . . . . . . . . . . . . Tunnel 2 | . 2 . . . . . . . . . . . . . . . . . . . . . . . . . . . . . . . . . . . Scanalyzers . | . . . . . . . . . . . . . . . . . . . . . . . . . . . . . . . . . . . . . Garrison Access 4 | . . . . . . . 1 . 1 . . . . 1 . . . . . . . . . . . . . . . . . . . . 1 . Reprogram 3 | . . . . . . . 1 . 1 . . . . 1 . . . . . . . . . . . . . . . . . . . . . . Jam 1 | . . . . . . . . . . . . . . . . . . . . . . . . . . . . . . . . . . . 1 . Data Cores Recovered 4 | . . . . . . . 1 . . . . . . . . . . 2 . 1 . . . . . . . . . . . . . . . . Used . | . . . . . . . . . . . . . . . . . . . . . . . . . . . . . . . . . . . . . Hacking Detections 93 | . 5 . 13 . . . 16 2 1 2 2 2 3 3 2 3 . 6 . 7 . . . 1 1 . . . 1 . 11 1 7 1 2 1 Full Trace Events 15 | . . . 1 . . . 1 2 . 1 . 1 3 . 1 1 . 1 . . . . . . 1 . . . . . 1 1 . . . . Feedback Events . | . . . . . . . . . . . . . . . . . . . . . . . . . . . . . . . . . . . . . Feedback Blocked . | . . . . . . . . . . . . . . . . . . . . . . . . . . . . . . . . . . . . . Robot Schematics Acquired 5 | . 1 . . . . . . . . . . . . . . . . . . . . . . . . . . . . . 2 . 2 . . . Robots Built . | . . . . . . . . . . . . . . . . . . . . . . . . . . . . . . . . . . . . . Authchips . | . . . . . . . . . . . . . . . . . . . . . . . . . . . . . . . . . . . . . Time . | . . . . . . . . . . . . . . . . . . . . . . . . . . . . . . . . . . . . . Total Robot Build Rating . | . . . . . . . . . . . . . . . . . . . . . . . . . . . . . . . . . . . . . Part Schematics Acquired 39 | . 4 . 3 . . . 5 . . . 3 . . 6 . . . 1 . . . . 4 . . . . . . . 4 . 9 . . . Parts Built 4 | . . . . . . . . . . . . 4 . . . . . . . . . . . . . . . . . . . . . . . . Authchips . | . . . . . . . . . . . . . . . . . . . . . . . . . . . . . . . . . . . . . Time 201 | . . . . . . . . . . . . 201 . . . . . . . . . . . . . . . . . . . . . . . . Total Part Build Rating 22 | . . . . . . . . . . . . 22 . . . . . . . . . . . . . . . . . . . . . . . . Parts Repaired 3 | . . . 2 . . . 1 . . . . . . . . . . . . . . . . . . . . . . . . . . . . . Time 125 | . . . 64 . . . 61 . . . . . . . . . . . . . . . . . . . . . . . . . . . . . Parts Recycled . | . . . . . . . . . . . . . . . . . . . . . . . . . . . . . . . . . . . . . Recycled Matter . | . . . . . . . . . . . . . . . . . . . . . . . . . . . . . . . . . . . . . Retrieved Matter . | . . . . . . . . . . . . . . . . . . . . . . . . . . . . . . . . . . . . . Retrieved Components 28 | . 19 . . . . . 9 . . . . . . . . . . . . . . . . . . . . . . . . . . . . . Parts Scanalyzed 19 | . . . 2 . . . 5 . . . 3 . . 7 . 1 . 1 . . . . . . . . . . . . . . . . . . Part Schematics Acquired 16 | . . . 2 . . . 4 . . . 3 . . 6 . . . 1 . . . . . . . . . . . . . . . . . . Parts Damaged 4 | . . . . . . . 1 . . . . . . 2 . 1 . . . . . . . . . . . . . . . . . . . . Bothacking | -11 -10 -10 -9 -9 -9 -8 -8 -8 -8 -8 -8 -7 -7 -7 -7 -6 -6 -5 -5 -5 -5 -5 -5 -4 -4 -4 -4 -4 -3 -3 -3 -2 -2 -2 -1 -1 ------------ Run | Yrd Mat Min Mat Min Exi Min Mat Gar Mat Gar Mat Fac Gar Fac Gar Fac DSF Fac Was Fac Upp Upp Zhi Pro Fac Upp Upp War Pro Res Tes Res Qua Frg Acc Com Used RIF Installer . | . . . . . . . . . . . . . . . . . . . . . . . . . . . . . . . . . . . . . Robots Hacked 9 | . . . 1 . 4 . . . . . . . . . . . . 1 . . . . 3 . . . . . . . . . . . . . Non-combat 5 | . . . 1 . 3 . . . . . . . . . . . . 1 . . . . . . . . . . . . . . . . . . Combat 4 | . . . . . 1 . . . . . . . . . . . . . . . . . 3 . . . . . . . . . . . . . Robot Hacks Applied 12 | . . . 1 . 4 . . . . . . . . . . . . 1 . . . . 6 . . . . . . . . . . . . . parse_system 11 | . . . 1 . 4 . . . . . . . . . . . . . . . . . 6 . . . . . . . . . . . . . find_chute 1 | . . . . . . . . . . . . . . . . . . 1 . . . . . . . . . . . . . . . . . . Relay Couplers Released 101 | . . . . . . . . 31 . 20 . . 24 . 18 . . . . . . . . . . . . . . . . 1 4 . 3 . Machine Destruction 97 | . . . . . . . . 31 . 20 . . 24 . 18 . . . . . . . . . . . . . . . . 1 . . 3 . Programmers 4 | . . . . . . . . . . . . . . . . . . . . . . . . . . . . . . . . . 4 . . . Fabnet Peak Effective % . | . . . . . . . . . . . . . . . . . . . . . . . . . . . . . . . . . . . . . Robots Rewired 21 | . . . . . . . . 5 . . . . 16 . . . . . . . . . . . . . . . . . . . . . . . Allies Hacked 3 | . . . . . . . . . . . . . . . 2 . . . . 1 . . . . . . . . . . . . . . . . Hacks Repelled . | . . . . . . . . . . . . . . . . . . . . . . . . . . . . . . . . . . . . . Allies | -11 -10 -10 -9 -9 -9 -8 -8 -8 -8 -8 -8 -7 -7 -7 -7 -6 -6 -5 -5 -5 -5 -5 -5 -4 -4 -4 -4 -4 -3 -3 -3 -2 -2 -2 -1 -1 -------- Run | Yrd Mat Min Mat Min Exi Min Mat Gar Mat Gar Mat Fac Gar Fac Gar Fac DSF Fac Was Fac Upp Upp Zhi Pro Fac Upp Upp War Pro Res Tes Res Qua Frg Acc Com Total Allies 32 | . . 2 . 1 . . 3 5 2 . . . 16 1 . . . . . 2 . . . . . . . . . . . . . . . . Largest Group 14 | . . 2 1 1 1 . 3 4 4 1 . . 14 13 9 . . . . 2 . . . . . . . . . . . . . . . . Highest-Rated Group 391 | . . 47 31 31 31 . 48 73 73 24 . . 391 371 264 . . . . 98 . . . . . . . . . . . . . . . . Highest-Rated Ally 49 | . . 31 31 31 31 . 16 25 25 24 . . 43 43 43 . . . . 49 . . . . . . . . . . . . . . . . Initial Warlord ECA Mod 1354 | . . . . . . . . . 15 15 26 25 25 38 38 49 49 58 58 58 58 58 58 57 57 57 57 57 56 56 56 55 55 55 54 54 Total Orders 5 | . . . . . . . . . . . . . 5 . . . . . . . . . . . . . . . . . . . . . . . GUARD 4 | . . . . . . . . . . . . . 4 . . . . . . . . . . . . . . . . . . . . . . . AID 1 | . . . . . . . . . . . . . 1 . . . . . . . . . . . . . . . . . . . . . . . Ally Attacks 170 | . . 6 14 . . . . 23 15 12 . . 30 46 18 . . . . 6 . . . . . . . . . . . . . . . . Total Damage 4238 | . . 82 232 . . . . 253 293 277 . . 968 1401 616 . . . . 116 . . . . . . . . . . . . . . . . Kills 43 | . . 2 3 . . . . 4 3 2 . . 8 14 6 . . . . 1 . . . . . . . . . . . . . . . . Allies Corrupted 1 | . . . . . . . . . . . . . . . . . . . . 1 . . . . . . . . . . . . . . . . Allies Melted 2 | . . . . . . . . . . . . . . . . . . . . . . . . . . . . . . . . 2 . . . . Intel | -11 -10 -10 -9 -9 -9 -8 -8 -8 -8 -8 -8 -7 -7 -7 -7 -6 -6 -5 -5 -5 -5 -5 -5 -4 -4 -4 -4 -4 -3 -3 -3 -2 -2 -2 -1 -1 ------- Run | Yrd Mat Min Mat Min Exi Min Mat Gar Mat Gar Mat Fac Gar Fac Gar Fac DSF Fac Was Fac Upp Upp Zhi Pro Fac Upp Upp War Pro Res Tes Res Qua Frg Acc Com Active Infowar (turns) 22603 | 203 1914 290 . . . . . . . . . 415 . 670 120 . . . . 1057 1473 1308 579 1736 343 1110 1154 1474 2197 326 1637 2104 1716 777 . . Optics 11980 | . . . . . . . . . . . . . . . . . . . . . . . . . . 596 1154 1474 2197 326 1637 2103 1716 777 . . Sensors 10996 | . . . . . . . . . . . . . . . . . . . . 1057 1473 1308 579 1736 265 1110 1153 949 1366 . . . . . . . IFF 2 | . . . . . . . . . . . . . . . . . . . . . . . . . . . . . . . . . 2 . . . Structural 67 | . . . . . . . . . . . . . . . . . . . . . . . . . . . . . . . 67 . . . . . Seismic 2407 | 203 1914 290 . . . . . . . . . . . . . . . . . . . . . . . . . . . . . . . . . . Machine Analysis 4817 | . . . . . . . . . . . . 415 . 670 120 . . . . . . . . . . . . . . 326 1637 1649 . . . . Jamming 1817 | . . . . . . . . . . . . . . . . . . . . . . . . . 85 . . . . . 1287 445 . . . . Robot Analysis Total 4 | . . . . . . . . . . . . . . . . . . . . . . . 4 . . . . . . . . . . . . . Derelict Logs Recovered 10 | . . 2 . 1 . . . . . . . . . . . . . . . . 1 2 . 1 . 1 2 . . . . . . . . . Drone Launches . | . . . . . . . . . . . . . . . . . . . . . . . . . . . . . . . . . . . . . Drone Recoveries . | . . . . . . . . . . . . . . . . . . . . . . . . . . . . . . . . . . . . . Exploration | -11 -10 -10 -9 -9 -9 -8 -8 -8 -8 -8 -8 -7 -7 -7 -7 -6 -6 -5 -5 -5 -5 -5 -5 -4 -4 -4 -4 -4 -3 -3 -3 -2 -2 -2 -1 -1 ------------- Run | Yrd Mat Min Mat Min Exi Min Mat Gar Mat Gar Mat Fac Gar Fac Gar Fac DSF Fac Was Fac Upp Upp Zhi Pro Fac Upp Upp War Pro Res Tes Res Qua Frg Acc Com Turns Passed 45313 | 245 1992 698 2957 364 871 350 3634 1725 542 1815 502 590 2668 712 1854 174 379 680 319 1977 1473 1308 583 1803 424 1110 1154 1474 2197 326 1637 2104 1716 855 1521 580 Spaces Moved 23410 | 127 1157 511 1644 229 532 217 1602 863 243 817 265 236 1034 358 727 105 171 303 133 1057 865 790 238 1105 199 556 686 828 1349 174 920 1317 861 344 609 238 Core 8 | 4 . . . . . . . . . . . . . . . . . . . . . . . . . . . . . . . . . . . 4 Treads . | . . . . . . . . . . . . . . . . . . . . . . . . . . . . . . . . . . . . . Legs . | . . . . . . . . . . . . . . . . . . . . . . . . . . . . . . . . . . . . . Wheels 23402 | 123 1157 511 1644 229 532 217 1602 863 243 817 265 236 1034 358 727 105 171 303 133 1057 865 790 238 1105 199 556 686 828 1349 174 920 1317 861 344 609 234 Hover . | . . . . . . . . . . . . . . . . . . . . . . . . . . . . . . . . . . . . . Flight . | . . . . . . . . . . . . . . . . . . . . . . . . . . . . . . . . . . . . . Fastest Speed 50 | 50 90 95 95 155 140 140 140 145 145 145 145 145 150 150 165 140 155 155 155 155 160 160 130 145 123 150 131 131 138 154 119 119 136 146 130 50 Average Speed 146 | 88 97 95 135 155 140 140 151 154 155 145 145 152 158 179 191 149 155 155 178 158 160 160 131 145 133 174 145 132 144 171 133 142 152 153 160 148 Slowest Speed 335 | 90 115 95 155 155 155 140 160 160 160 145 145 160 240 180 285 155 155 155 185 160 160 160 160 160 150 180 335 146 163 180 187 158 155 238 170 270 Overloaded Moves . | . . . . . . . . . . . . . . . . . . . . . . . . . . . . . . . . . . . . . Propulsion Burnouts . | . . . . . . . . . . . . . . . . . . . . . . . . . . . . . . . . . . . . . Robots Hopped . | . . . . . . . . . . . . . . . . . . . . . . . . . . . . . . . . . . . . . Potential Cave-ins 2 | . . . . . . . . . . . . . . . . . . . . . . . . 2 . . . . . . . . . . . . Cave-ins Triggered . | . . . . . . . . . . . . . . . . . . . . . . . . . . . . . . . . . . . . . Teleports 2 | . . . . . . . . . . . . . . . . . . . . . . . . . . . . . . . . 1 . 1 . . Exploration Rate (%) 58 | 4 98 98 98 44 70 57 92 94 22 88 26 7 96 12 81 3 93 11 96 30 89 88 62 97 4 63 77 91 98 6 81 44 92 16 24 18 Regions Visited 36 Branch Regions 16 Pre-discovered Areas 17 | . 4 . 4 . 1 . 2 . . . . . . . . . . . . . 1 . 3 . . 1 1 . . . . . . . . . Known Exits Taken 20 | . . 1 1 . . . 1 . 1 . 1 1 . 1 . 1 . . . 1 1 1 1 1 1 1 1 1 1 1 . . . 1 . . Unknown Exits Taken 9 | 1 1 . . 1 1 1 . . . . . . . . . . . . . . . . . . . . . . . . 1 1 1 . 1 . Scrap Searched 18 | . . 1 . 1 . 1 . . . . . . . . . . . . . . 4 . . 1 . 3 3 . 4 . . . . . . . Spaces Dug 469 | . 27 32 22 . . . 3 4 2 19 . 25 19 3 7 . . 12 1 18 33 4 . 59 9 14 15 3 41 . 19 7 35 . 34 2 Terrain Destroyed 2045 | . 28 67 31 . . . 37 10 6 49 . 31 67 10 51 . 25 43 11 131 76 6 . 153 37 88 24 50 162 3 90 77 111 124 264 183 Melee 57 | . . . 1 . . . 3 1 2 16 . 6 3 . . . . . . . . . . . . . . . 18 . 7 . . . . . Projectile 883 | . 13 3 2 . . . 2 9 4 1 . 6 34 10 47 . 8 23 11 67 32 6 . 87 33 35 24 5 48 3 69 27 90 48 95 41 AOE 1055 | . 15 64 28 . . . 32 . . 32 . 19 29 . 4 . 17 20 . 64 44 . . 66 4 53 . 45 96 . . 49 20 58 155 141 Terrain Rammed . | . . . . . . . . . . . . . . . . . . . . . . . . . . . . . . . . . . . . . Walls Destroyed . | . . . . . . . . . . . . . . . . . . . . . . . . . . . . . . . . . . . . . Machines Disabled . | . . . . . . . . . . . . . . . . . . . . . . . . . . . . . . . . . . . . . Actions | -11 -10 -10 -9 -9 -9 -8 -8 -8 -8 -8 -8 -7 -7 -7 -7 -6 -6 -5 -5 -5 -5 -5 -5 -4 -4 -4 -4 -4 -3 -3 -3 -2 -2 -2 -1 -1 --------- Run | Yrd Mat Min Mat Min Exi Min Mat Gar Mat Gar Mat Fac Gar Fac Gar Fac DSF Fac Was Fac Upp Upp Zhi Pro Fac Upp Upp War Pro Res Tes Res Qua Frg Acc Com Total 30148 | 229 1905 670 2171 231 613 234 2573 1073 321 1169 327 339 1594 396 917 121 222 402 172 1231 903 826 366 1200 283 635 810 1127 1484 194 1162 1464 1092 487 835 370 Wait 2556 | 57 633 110 253 . 15 . 775 34 26 102 15 9 82 11 14 . 1 . . 7 . 29 . . 5 15 72 186 26 1 10 9 51 5 2 1 Move 23376 | 126 1156 510 1643 228 531 216 1601 862 242 816 264 236 1033 357 726 104 170 303 132 1056 864 789 237 1104 198 555 685 827 1348 173 919 1316 860 343 608 238 Hop . | . . . . . . . . . . . . . . . . . . . . . . . . . . . . . . . . . . . . . Pick Up 425 | 14 22 3 34 . 14 1 28 7 5 12 8 9 24 1 9 4 6 16 3 30 3 . 11 5 8 1 8 16 7 7 33 27 11 7 17 14 Fast Attach 144 | 6 1 . 3 . 3 1 6 . 2 3 . 2 12 3 4 . 1 1 5 2 . . 8 . 1 5 3 2 5 2 9 9 16 10 14 5 Attach 201 | 1 4 1 2 . 6 . 7 1 7 1 2 7 7 . 2 2 . 6 3 14 . . 3 1 10 3 2 2 7 2 13 14 9 9 23 30 Detach 50 | . . . . . 2 . . . . . . . 4 . . . . . 5 2 . . 3 . 1 1 2 . 2 . 3 1 5 5 10 4 Swap 540 | . 19 15 32 . 2 2 27 15 6 34 7 21 51 4 33 6 8 18 3 19 2 . 9 12 10 4 6 25 6 3 43 25 28 15 22 8 Drop 448 | 5 15 4 29 . 15 2 39 7 2 11 9 6 45 6 11 4 7 10 4 24 2 . 17 4 2 2 7 18 5 3 41 26 28 7 14 17 Fire 1798 | 20 55 27 85 3 19 12 86 81 29 106 22 35 220 14 85 1 21 47 17 77 32 8 72 74 32 42 24 39 60 2 63 37 76 62 77 36 Melee 173 | . . . 2 . 4 . 4 7 2 36 . 8 31 . 7 . . 1 . . . . 6 . . 7 1 3 18 1 27 . 8 . . . Ram 1 | . . . . . . . . . . . . . . . . . . . . . . . . . . . . . . . 1 . . . . . Kick . | . . . . . . . . . . . . . . . . . . . . . . . . . . . . . . . . . . . . . Crush . | . . . . . . . . . . . . . . . . . . . . . . . . . . . . . . . . . . . . . Escape Stasis 213 | . . . . . . . . 44 . 48 . . 48 . 8 . 8 . . . . . . . 16 . . . . . . . . 24 . 17 Rewire 23 | . . . . . . . . 5 . . . . 18 . . . . . . . . . . . . . . . . . . . . . . . Trap 90 | . . . 88 . 2 . . . . . . . . . . . . . . . . . . . . . . . . . . . . . . . Miscellaneous 110 | . . . . . . . . 10 . . . 6 19 . 18 . . . . . . . . . . . . 9 . . . . . . 48 . Route ------- -11/Scrapyard -10/Materials (discovered 6 exits: *Mat x3 / [*Min x2] / [*Sub]) -10/Mines (discovered 2 exits: *Mat x2) -9/Materials (discovered 5 exits: *Mat x3 / *Min x2) -9/Mines -9/Exiles (discovered 2 exits: [*Min x2]) -8/Mines -8/Materials (discovered 4 exits: *Fac x3 / Gar) -8/Garrison (discovered 4 exits: *Mat x4) -8/Materials (discovered 2 exits: *Fac / Gar) -8/Garrison (discovered 3 exits: *Mat x3) -8/Materials -7/Factory (discovered 4 exits: Sto x2 / Low / Gar) -7/Garrison (discovered 3 exits: *Fac x3) -7/Factory -7/Garrison (discovered 3 exits: *Fac x3) -6/Factory -6/DSF -5/Factory -5/Waste -5/Factory (discovered 4 exits: *Fac x2 / *Upp x2) -5/Upper Caves -5/Upper Caves (discovered 2 exits: *Fac / *Zhi) -5/Zhirov -4/Proximity Caves -4/Factory (discovered 3 exits: Res / *Upp / Arm) -4/Upper Caves -4/Upper Caves (discovered 2 exits: *Res / *War) -4/Warlord -3/Proximity Caves -3/Research -3/Testing -2/Research (discovered 3 exits: *Acc / *Qua x2) -2/Quarantine (discovered 2 exits: [*Sec] / *Frg) -2/Protoforge -1/Access -1/Command History --------- Turn | Location | Event 7 | -11/Scrapyard | Discovered new exit (range 15) 246 | -11/Scrapyard | Entered Materials 304 | -10/Materials | Build established: Mutant 638 | -10/Materials | Lost 3 parts (2p1n) 681 | -10/Materials | Discovered new exit (range 16) 711 | -10/Materials | Discovered new exit (range 16) 846 | -10/Materials | Discovered new exit (range 12) 959 | -10/Materials | Discovered new exit (range 10) 1122 | -10/Materials | Discovered new exit (range 7) 1201 | -10/Materials | Discovered new exit (range 7) 1683 | -10/Materials | Learned location of Subcaves (-10) 1851 | -10/Materials | Learned Storage garrison access intel 1928 | -10/Materials | Learned location of 1 exit from Storage 1983 | -10/Materials | Learned location of 1 exit from Storage 2050 | -10/Materials | Learned location of Mines (-10) 2238 | -10/Materials | Entered Mines 2250 | -10/Mines | Assembled infested the area 2255 | -10/Mines | Assisted by a Guerilla fighting off Assembled 2443 | -10/Mines | Identified exit to Materials 2496 | -10/Mines | Learned Materials stockpile data 2526 | -10/Mines | Found a damaged Exp. Sensor Array with a note attached 2530 | -10/Mines | Found Prototype Device 2784 | -10/Mines | Discovered exit to Materials (range 11) 2936 | -10/Mines | Entered Materials 2936 | -9/Materials | Accompanied by 1 ally 2936 | -9/Materials | Evolved 2 slots: Weapon x2 2937 | -9/Materials | Identified exit to Mines 2941 | -9/Materials | Led the pair of lost Derelicts to an unsafe place 3465 | -9/Materials | Build established: Gunner 3778 | -9/Materials | Discovered new exit (range 16) 4180 | -9/Materials | Repaired Hvy. Assault Rifle? 4357 | -9/Materials | Discovered new exit (range 3) 4532 | -9/Materials | Learned location of Zion (-6) 4567 | -9/Materials | Learned location of Mines (-9) 4609 | -9/Materials | Learned location of Mines (-8) 4617 | -9/Materials | Learned 2 Storage zone layouts 4633 | -9/Materials | Learned 2 Materials zone layouts 4654 | -9/Materials | Learned Materials stockpile data 5061 | -9/Materials | Build established: Scavenger-Gunner 5141 | -9/Materials | Discovered new exit (range 14) 5169 | -9/Materials | Identified Exp. Sensor Array 5824 | -9/Materials | Repaired Hvy. Assault Rifle 5893 | -9/Materials | Entered Mines 5996 | -9/Mines | Build established: Trapper-Gunner 6083 | -9/Mines | Learned Materials emergency access door positions 6084 | -9/Mines | Received a Mining Laser from a helpful Derelict 6197 | -9/Mines | Deemed a non-threat by the Exiles lab entrance 6197 | -9/Mines | Discovered new exit (range 5) 6257 | -9/Mines | Entered Exiles 6257 | -9/Exiles | Accompanied by 1 ally 6296 | -9/Exiles | Met 8R-AWN 6322 | -9/Exiles | Met EX-HEX 6397 | -9/Exiles | Met EX-DEC 6485 | -9/Exiles | Discovered new exit (range 14) 6581 | -9/Exiles | Build established: Trapper-Mutant 6657 | -9/Exiles | Discovered new exit (range 15) 6762 | -9/Exiles | Met EX-BIN 6782 | -9/Exiles | Aligned with FarCom system 6783 | -9/Exiles | Given EX-Vault access code 6817 | -9/Exiles | Opened EX-Vault 6851 | -9/Exiles | Warned to stay clear of 0b10 Research branches 6874 | -9/Exiles | Exiles lab attacked by MAIN.C 6972 | -9/Exiles | Warned about trapping Exiles lab 7020 | -9/Exiles | Attacked by the Exiles 7057 | -9/Exiles | Core integrity fell below 50% 7106 | -9/Exiles | Destroyed 8R-AWN 7107 | -9/Exiles | Core integrity fell below 20% 7116 | -9/Exiles | Found 8R-AWN's Boregun 7120 | -9/Exiles | Found Exp. Targeting Computer 7128 | -9/Exiles | Lost 4 parts (1p1n2w) 7128 | -9/Exiles | Entered Mines 7333 | -8/Mines | Build established: Trapper-Gunner 7387 | -8/Mines | Discovered new exit (range 13) 7478 | -8/Mines | Entered Materials 7478 | -8/Materials | Evolved 2 slots: Utility x1, Weapon x1 7479 | -8/Materials | Identified exit to Factory 9162 | -8/Materials | Repaired Broken Arm. Huge Wheel 9445 | -8/Materials | Learned location of 2 exits from Lower Caves 9534 | -8/Materials | Learned Storage stockpile data 9595 | -8/Materials | Learned Storage trap positions 9637 | -8/Materials | Learned Factory trap positions 9755 | -8/Materials | Discovered exit to Factory (range 11) 10079 | -8/Materials | Garrison activated, responded to threat 10421 | -8/Materials | Garrison activated, responded to threat 10458 | -8/Materials | Identified exit to Garrison 10668 | -8/Materials | Discovered exit to Factory (range 18) 11112 | -8/Materials | Entered Garrison 11112 | -8/Garrison | Accompanied by 3 allies 11244 | -8/Garrison | Triggered checkpoint 11262 | -8/Garrison | Garrison Relay disabled 11283 | -8/Garrison | Learned Materials security intel 11502 | -8/Garrison | Triggered checkpoint 11636 | -8/Garrison | Phase Generator disabled 11770 | -8/Garrison | Triggered checkpoint 11852 | -8/Garrison | Triggered checkpoint 11860 | -8/Garrison | Destroyed 10 combat bots 11979 | -8/Garrison | Garrison Relay disabled 11990 | -8/Garrison | Triggered checkpoint 12040 | -8/Garrison | Discovered new exit (range 14) 12258 | -8/Garrison | Discovered new exit (range 10) 12280 | -8/Garrison | Triggered checkpoint 12310 | -8/Garrison | Garrison Relay disabled 12542 | -8/Garrison | Garrison Relay disabled 12544 | -8/Garrison | Garrison Relay disabled 12546 | -8/Garrison | Garrison Relay disabled 12548 | -8/Garrison | Garrison Relay disabled 12586 | -8/Garrison | Discovered new exit (range 5) 12610 | -8/Garrison | Triggered checkpoint 12639 | -8/Garrison | Discovered new exit (range 3) 12724 | -8/Garrison | Garrison Relay disabled 12837 | -8/Garrison | Entered Materials 12837 | -8/Materials | Accompanied by 4 allies 12928 | -8/Materials | Core integrity fell below 50% 12981 | -8/Materials | Lost 3 allies 13090 | -8/Materials | Garrison activated, responded to threat 13220 | -8/Materials | Discovered exit to Factory (range 16) 13237 | -8/Materials | First assault squad dispatched 13268 | -8/Materials | Core integrity fell below 20% 13298 | -8/Materials | Destroyed 7 combat bots 13331 | -8/Materials | Lost 6 parts (1p1n1u3w) 13358 | -8/Materials | Identified exit to Garrison 13379 | -8/Materials | Entered Garrison 13379 | -8/Garrison | Accompanied by 1 ally 13449 | -8/Garrison | Triggered checkpoint 13467 | -8/Garrison | Garrison Relay disabled 13931 | -8/Garrison | Triggered checkpoint 13979 | -8/Garrison | Destroyed 7 combat bots 14069 | -8/Garrison | Discovered new exit (range 9) 14080 | -8/Garrison | Triggered checkpoint 14165 | -8/Garrison | Garrison Relay disabled 14190 | -8/Garrison | Garrison Relay disabled 14232 | -8/Garrison | Build established: Scavenger-Gunner 14399 | -8/Garrison | Discovered new exit (range 15) 14649 | -8/Garrison | Garrison Relay disabled 14825 | -8/Garrison | Triggered checkpoint 14862 | -8/Garrison | Discovered new exit (range 8) 14903 | -8/Garrison | Triggered checkpoint 14966 | -8/Garrison | Garrison Relay disabled 15137 | -8/Garrison | Identified exit to Materials 15194 | -8/Garrison | Entered Materials 15594 | -8/Materials | First assault squad dispatched 15684 | -8/Materials | Discovered exit to Factory (range 8) 15696 | -8/Materials | Entered Factory 15696 | -7/Factory | Evolved 2 slots: Utility x1, Weapon x1 15697 | -7/Factory | Identified exit to Storage 15697 | -7/Factory | Identified exit to Lower Caves 15698 | -7/Factory | Loaded intel: 121 trap records 16001 | -7/Factory | Build established: Scavenger-Executioner 16044 | -7/Factory | Fabricated Hardcell Cannon? 16093 | -7/Factory | Garrison activated, responded to threat 16148 | -7/Factory | Fabricated Arm. Huge Wheel (x2) 16286 | -7/Factory | Identified exit to Garrison 16286 | -7/Factory | Entered Garrison 16364 | -7/Garrison | Triggered checkpoint 16470 | -7/Garrison | Garrison Relay disabled 16658 | -7/Garrison | Destroyed 12 combat bots 16711 | -7/Garrison | Triggered checkpoint 16719 | -7/Garrison | Triggered checkpoint 17116 | -7/Garrison | Discovered new exit (range 8) 17125 | -7/Garrison | Triggered checkpoint 17185 | -7/Garrison | Garrison Relay disabled 17202 | -7/Garrison | Triggered checkpoint 17230 | -7/Garrison | H-XX Assembler disabled 17247 | -7/Garrison | Garrison Relay disabled 17519 | -7/Garrison | Phase Generator disabled 17981 | -7/Garrison | Triggered checkpoint 17992 | -7/Garrison | Triggered checkpoint 18030 | -7/Garrison | Triggered checkpoint 18066 | -7/Garrison | Garrison Relay disabled 18075 | -7/Garrison | Build established: Commander-Executioner 18137 | -7/Garrison | Discovered new exit (range 12) 18184 | -7/Garrison | Triggered checkpoint 18255 | -7/Garrison | Triggered checkpoint 18277 | -7/Garrison | Garrison Relay disabled 18656 | -7/Garrison | Learned Factory security intel 18698 | -7/Garrison | Discovered new exit (range 10) 18738 | -7/Garrison | Garrison Relay disabled 18954 | -7/Garrison | Entered Factory 18954 | -7/Factory | Accompanied by 13 allies 19354 | -7/Factory | First assault squad dispatched 19543 | -7/Factory | Lost 3 allies 19615 | -7/Factory | Identified exit to Garrison 19647 | -7/Factory | Garrison activated, responded to threat 19666 | -7/Factory | Entered Garrison 19666 | -7/Garrison | Accompanied by 9 allies 19715 | -7/Garrison | Discovered new exit (range 41) 19715 | -7/Garrison | Discovered new exit (range 68) 19715 | -7/Garrison | Discovered new exit (range 41) 19733 | -7/Garrison | Triggered checkpoint 19770 | -7/Garrison | Garrison Relay disabled 19826 | -7/Garrison | Lost 6 allies 20006 | -7/Garrison | Triggered checkpoint 20051 | -7/Garrison | Triggered checkpoint 20103 | -7/Garrison | Destroyed 8 combat bots 20109 | -7/Garrison | Build established: Executioner 20196 | -7/Garrison | Learned Factory security intel 20224 | -7/Garrison | Triggered checkpoint 20258 | -7/Garrison | Garrison Relay disabled 20350 | -7/Garrison | Triggered checkpoint 20549 | -7/Garrison | H-XX Assembler disabled 20778 | -7/Garrison | Garrison Relay disabled 20926 | -7/Garrison | Phase Generator disabled 21000 | -7/Garrison | Garrison Relay disabled 21234 | -7/Garrison | Triggered checkpoint 21344 | -7/Garrison | Garrison Relay disabled 21520 | -7/Garrison | Entered Factory 21520 | -6/Factory | Evolved 2 slots: Propulsion x1, Utility x1 21694 | -6/Factory | Identified exit to DSF 21694 | -6/Factory | Entered DSF 21734 | -6/DSF | Additional patrols routed to DSF 21780 | -6/DSF | Discovered new exit (range 15) 22003 | -6/DSF | Sterilization system engaged 22023 | -6/DSF | Ambient heat levels rising (+10) 22038 | -6/DSF | Ambient heat levels rising (+10) 22053 | -6/DSF | Ambient heat levels rising (+10) 22068 | -6/DSF | Ambient heat levels rising (+10) 22073 | -6/DSF | Entered Factory 22073 | -5/Factory | Evolved 2 slots: Power x1, Utility x1 22177 | -5/Factory | Lost 3 parts (3w) 22216 | -5/Factory | Destroyed 13 combat bots 22414 | -5/Factory | Build established: Scavenger-Executioner 22639 | -5/Factory | Destroyed 7 combat bots 22653 | -5/Factory | Spotted B-75 Beast 22673 | -5/Factory | First assault squad dispatched 22676 | -5/Factory | Destroyed B-75 Beast 22720 | -5/Factory | Garrison activated, responded to threat 22753 | -5/Factory | Sucked down chute 22753 | -5/Factory | Entered Waste 22768 | -5/Waste | EMP discharged 22775 | -5/Waste | Spotted C-40 Crusher 22781 | -5/Waste | Destroyed C-40 Crusher 22789 | -5/Waste | Spotted C-40 Crusher 22791 | -5/Waste | Destroyed C-40 Crusher 22800 | -5/Waste | Spotted C-40 Crusher 22812 | -5/Waste | Spotted C-40 Crusher 22823 | -5/Waste | Crushed by Compactor (1 part destroyed) 22823 | -5/Waste | Spotted C-40 Crusher 22826 | -5/Waste | Crushed by Compactor (0 parts destroyed, 1 dropped) 22829 | -5/Waste | Destroyed C-40 Crusher 22829 | -5/Waste | Destroyed C-40 Crusher 22841 | -5/Waste | Destroyed C-40 Crusher 22857 | -5/Waste | Lost 3 parts (1p2w) 22863 | -5/Waste | Found Damper Plating 22868 | -5/Waste | EMP discharged 22868 | -5/Waste | System corruption reached 10% 22901 | -5/Waste | Spotted C-40 Crusher 22910 | -5/Waste | Destroyed C-40 Crusher 22968 | -5/Waste | EMP discharged 22996 | -5/Waste | Discovered new exit (range 12) 23068 | -5/Waste | EMP discharged 23072 | -5/Waste | Entered Factory 23380 | -5/Factory | Spotted B-75 Beast 23527 | -5/Factory | Destroyed B-75 Beast 23554 | -5/Factory | Lost 3 parts (2n1w) 23766 | -5/Factory | Build established: Executioner 23967 | -5/Factory | Discovered new exit (range 12) 23989 | -5/Factory | Identified exit to Factory 24745 | -5/Factory | Discovered exit to Factory (range 8) 24955 | -5/Factory | Identified exit to Upper Caves 25049 | -5/Factory | Entered Upper Caves 25055 | -5/Upper Caves | Met a Warlord Commander 25056 | -5/Upper Caves | Learned location of Warlord (-4) 25057 | -5/Upper Caves | Warlord Commander delivered Encrypted Comm Array 25064 | -5/Upper Caves | Found Encrypted Comm Array 25496 | -5/Upper Caves | Encountered a Warlord checkpoint 26207 | -5/Upper Caves | Learned 4 Factory zone layouts 26266 | -5/Upper Caves | Discovered new exit (range 7) 26279 | -5/Upper Caves | Identified exit to Upper Caves 26522 | -5/Upper Caves | Entered another Upper Caves area 26713 | -5/Upper Caves | Discovered exit to Factory (range 6) 27028 | -5/Upper Caves | Learned Factory interactive machine intel 27687 | -5/Upper Caves | Discovered new exit (range 8) 27699 | -5/Upper Caves | Identified exit to Zhirov 27830 | -5/Upper Caves | Entered Zhirov 27833 | -5/Zhirov | Discovered new exit (range 4) 27874 | -5/Zhirov | Met Zhirov 27898 | -5/Zhirov | Learned location of Quarantine (-2) 27898 | -5/Zhirov | Learned location of Testing (-3) 27898 | -5/Zhirov | Learned location of Command (-1) 27927 | -5/Zhirov | Zhirov requested help retrieving the SGEMP Prototype 27951 | -5/Zhirov | Found Alien Artifact 27951 | -5/Zhirov | Identified Integrated Dissipator 27951 | -5/Zhirov | Installed Integrated Dissipator, increased core heat dissipation (+20) 27968 | -5/Zhirov | Found Alien Artifact 28146 | -5/Zhirov | Build established: Mutant 28410 | -5/Zhirov | Identified exit to Proximity Caves 28413 | -5/Zhirov | Entered Proximity Caves 28663 | -4/Proximity Caves | Build established: Executioner 29213 | -4/Proximity Caves | Attracted the attention of an 0b10 checkpoint 29901 | -4/Proximity Caves | Discovered exit to Factory (range 14) 30216 | -4/Proximity Caves | Entered Factory 30216 | -4/Factory | Evolved 2 slots: Propulsion x1, Utility x1 30217 | -4/Factory | Identified exit to Armory 30218 | -4/Factory | Identified exit to Research 30219 | -4/Factory | Loaded intel: 56 interactive machine locations 30345 | -4/Factory | Identified Transdimensional Reconstructor 30386 | -4/Factory | Garrison activated, responded to threat 30446 | -4/Factory | Destroyed 9 combat bots 30455 | -4/Factory | Lost 6 parts (2n2u2w) 30466 | -4/Factory | First assault squad dispatched 30476 | -4/Factory | Discovered new exit (range 4) 30503 | -4/Factory | Identified exit to Upper Caves 30550 | -4/Factory | Found Prototype Launcher 30640 | -4/Factory | Entered Upper Caves 30871 | -4/Upper Caves | Lost 3 parts (1p2w) 31523 | -4/Upper Caves | Build established: Assassin 31556 | -4/Upper Caves | Identified Mni. Smartbomb Launcher 31595 | -4/Upper Caves | Lost 3 parts (1n2w) 31685 | -4/Upper Caves | Discovered new exit (range 7) 31700 | -4/Upper Caves | Identified exit to Upper Caves 31750 | -4/Upper Caves | Entered another Upper Caves area 31771 | -4/Upper Caves | Discovered exit to Research (range 20) 31813 | -4/Upper Caves | Learned Research garrison access intel 32162 | -4/Upper Caves | Build established: Executioner 32186 | -4/Upper Caves | Attracted the attention of an 0b10 checkpoint 32529 | -4/Upper Caves | Build established: Derelict-Executioner 32743 | -4/Upper Caves | Discovered new exit (range 11) 32759 | -4/Upper Caves | Identified exit to Warlord 32904 | -4/Upper Caves | Entered Warlord 32949 | -4/Warlord | System corruption cleaned by Quarantine Array 33077 | -4/Warlord | Learned Factory terminal intel 33077 | -4/Warlord | Learned Factory repair station intel 33077 | -4/Warlord | Learned Research terminal intel 33125 | -4/Warlord | Found Prototype Reactor 33130 | -4/Warlord | Found Prototype Device 33139 | -4/Warlord | Found Prototype Processor 33155 | -4/Warlord | Identified Exp. Target Analyzer 33179 | -4/Warlord | Identified Exp. Phase Shifter 33222 | -4/Warlord | Received a Watcher feed algorithm from an ecstatic Tinkerer 33226 | -4/Warlord | Identified Vortex Chain Reactor 33237 | -4/Warlord | Ran a Watcher feed algorithm 33576 | -4/Warlord | Warlord's base attacked by MAIN.C 33582 | -4/Warlord | Met Warlord 33658 | -4/Warlord | Found Prototype Energy Gun 33661 | -4/Warlord | Found Prototype Energy Gun 33661 | -4/Warlord | Identified Vortex Shotgun (x2) 33667 | -4/Warlord | Found Prototype Piercing Weapon 33671 | -4/Warlord | Found Prototype Energy Cannon 33672 | -4/Warlord | Identified Vortex Lance 33673 | -4/Warlord | Identified Vortex Cannon 33678 | -4/Warlord | Found Vortex Cannon 33861 | -4/Warlord | P-70 Sage assimilated allied LS-UQ0(m) 33887 | -4/Warlord | Destroyed 10 combat bots 33890 | -4/Warlord | Lost 3 allies 33926 | -4/Warlord | Warlord forces counterattacked 33948 | -4/Warlord | Spotted Striker 33965 | -4/Warlord | Lost 3 allies 33975 | -4/Warlord | Spotted Striker 34026 | -4/Warlord | Spotted Striker 34079 | -4/Warlord | Lost 18 allies 34087 | -4/Warlord | Spotted Striker 34093 | -4/Warlord | Spotted Striker 34093 | -4/Warlord | Spotted Striker 34139 | -4/Warlord | Lost 3 allies 34177 | -4/Warlord | Destroyed Striker 34183 | -4/Warlord | Build established: Scavenger-Executioner 34240 | -4/Warlord | Spotted Executioner 34251 | -4/Warlord | Warlord base infiltrated, sounded retreat 34266 | -4/Warlord | Spotted Executioner 34269 | -4/Warlord | Spotted Striker 34299 | -4/Warlord | Spotted B-90 Cyclops 34313 | -4/Warlord | Spotted Striker 34338 | -4/Warlord | Found Prototype Device 34338 | -4/Warlord | Identified Exp. Shock Absorption System 34359 | -4/Warlord | Discovered new exit (range 14) 34374 | -4/Warlord | Identified exit to Proximity Caves 34378 | -4/Warlord | Entered Proximity Caves 34564 | -3/Proximity Caves | Encountered a Derelict sapper outpost 35862 | -3/Proximity Caves | Attracted the attention of an 0b10 base 35919 | -3/Proximity Caves | Destroyed 7 combat bots 35925 | -3/Proximity Caves | Lost 9 parts (1p2n1u5w) 35966 | -3/Proximity Caves | Learned Armory emergency access door positions 35966 | -3/Proximity Caves | Learned Factory stockpile data 35966 | -3/Proximity Caves | Learned Extension terminal intel 36568 | -3/Proximity Caves | Discovered exit to Research (range 5) 36575 | -3/Proximity Caves | Entered Research 36575 | -3/Research | Evolved 2 slots: Utility x2 36576 | -3/Research | Identified exit to Testing 36577 | -3/Research | Loaded intel: 24 terminal locations 36578 | -3/Research | Loaded intel: 4 garrison access locations 36718 | -3/Research | Found Prototype Processor 36762 | -3/Research | Identified Exp. Signal Interpreter 36901 | -3/Research | Entered Testing 37070 | -3/Testing | Found Prototype Processor 37075 | -3/Testing | Found Prototype Processor 37076 | -3/Testing | Identified Spectral Analyzer (x2) 37236 | -3/Testing | Found Prototype Launcher 37236 | -3/Testing | Identified Adv. Micro-nuke Launcher 37263 | -3/Testing | Found Exp. Shock Absorption System 37324 | -3/Testing | Found Prototype Energy Gun 37324 | -3/Testing | Identified Tachyon Dispersion Ray 37384 | -3/Testing | Found Prototype Ballistic Cannon 37540 | -3/Testing | Found Prototype Hackware 37883 | -3/Testing | Identified System Mapper 37889 | -3/Testing | Identified Perforator 38004 | -3/Testing | Garrison activated, responded to threat 38011 | -3/Testing | Found Prototype Device 38019 | -3/Testing | Found Prototype Launcher 38044 | -3/Testing | System corruption reached 10% 38055 | -3/Testing | Discovered new exit (range 5) 38074 | -3/Testing | Lost 3 parts (2n1u) 38099 | -3/Testing | Identified Hellfire Missile Launcher 38102 | -3/Testing | Identified Adv. Kinecellerator 38538 | -3/Testing | Entered Research 38538 | -2/Research | Warlord forces began assault on 0b10 38538 | -2/Research | Evolved 2 slots: Power x1, Utility x1 38563 | -2/Research | Distinguished unit "Lucky Slug" dispatched to help 38563 | -2/Research | Distinguished unit "Shockpunchers" dispatched to help 38648 | -2/Research | Research machine network offline 38809 | -2/Research | Build established: Hacker-Executioner 38840 | -2/Research | Discovered new exit (range 23) 38849 | -2/Research | Lost 3 allies 38944 | -2/Research | Spotted Striker 38947 | -2/Research | Lost 3 allies 38957 | -2/Research | Destroyed Striker 38977 | -2/Research | Spotted Striker 38980 | -2/Research | Spotted Executioner 39002 | -2/Research | Destroyed Executioner 39005 | -2/Research | Warped through subspace 39036 | -2/Research | Lost 9 parts (2p2n2u3w) 39183 | -2/Research | Borebot progress halted 39305 | -2/Research | Build established: Executioner 39311 | -2/Research | Borebot progress halted 39422 | -2/Research | Borebot progress halted 39653 | -2/Research | Spotted Striker 39717 | -2/Research | Lost 5 allies 39816 | -2/Research | Discovered new exit (range 21) 39850 | -2/Research | Identified exit to Access 40041 | -2/Research | Given Cave Seal Controls access code 40258 | -2/Research | Found Exp. Core Analyzer 40277 | -2/Research | Build established: Scavenger-Executioner 40399 | -2/Research | Found Exp. Core Analyzer 40409 | -2/Research | Discovered new exit (range 15) 40642 | -2/Research | Entered Quarantine 40739 | -2/Quarantine | Found Alien Artifact 40752 | -2/Quarantine | Found Alien Artifact 40763 | -2/Quarantine | Found Alien Artifact 40777 | -2/Quarantine | Found Alien Artifact 40777 | -2/Quarantine | Identified Dimensional Node Initializer (x2) 40777 | -2/Quarantine | Initialized slip node 40845 | -2/Quarantine | Found Alien Impact Weapon 40991 | -2/Quarantine | Garrison activated, responded to threat 41033 | -2/Quarantine | Found Alien Artifact 41185 | -2/Quarantine | Destroyed 14 combat bots 41241 | -2/Quarantine | Found Alien Artifact 41386 | -2/Quarantine | Found Alien Reactor 42001 | -2/Quarantine | Cryocooling Duct disabled 42016 | -2/Quarantine | Ambient heat levels rising (+20) 42016 | -2/Quarantine | Non-combat units ordered to evacuate 42052 | -2/Quarantine | Identified Core Stripper 42063 | -2/Quarantine | Spotted Fortress 42081 | -2/Quarantine | Destroyed Fortress 42091 | -2/Quarantine | Found Vortex Chain Reactor 42106 | -2/Quarantine | Found Prototype Protection 42106 | -2/Quarantine | Identified Centrium Heavy Armor Plating 42109 | -2/Quarantine | Found Prototype Device 42109 | -2/Quarantine | Identified Exp. Force Field 42117 | -2/Quarantine | Found Prototype Device 42117 | -2/Quarantine | Identified Thermal Barrier 42124 | -2/Quarantine | Found Prototype Device 42124 | -2/Quarantine | Identified Exp. EM Shield 42207 | -2/Quarantine | Destroyed 8 combat bots 42351 | -2/Quarantine | Discovered new exit (range 7) 42351 | -2/Quarantine | Discovered new exit (range 6) 42358 | -2/Quarantine | Entered Protoforge 42398 | -2/Protoforge | Superfortress began startup sequence 42544 | -2/Protoforge | Discovered exit to Access (range 24) 42608 | -2/Protoforge | First assault squad dispatched 42628 | -2/Protoforge | Initialized slip node 42656 | -2/Protoforge | Spotted Hotshot 42656 | -2/Protoforge | Spotted Hotshot 42656 | -2/Protoforge | Spotted Hotshot 42665 | -2/Protoforge | Spotted Hotshot 42665 | -2/Protoforge | Destroyed Hotshot 42665 | -2/Protoforge | Destroyed Hotshot 42669 | -2/Protoforge | Destroyed Hotshot 42669 | -2/Protoforge | Destroyed Hotshot 42670 | -2/Protoforge | Spotted Hotshot 42673 | -2/Protoforge | Destroyed Hotshot 42712 | -2/Protoforge | Spotted Overlord 42757 | -2/Protoforge | Destroyed Overlord 42793 | -2/Protoforge | Destroyed 11 combat bots 42992 | -2/Protoforge | Spotted B-90 Cyclops 43012 | -2/Protoforge | Destroyed B-90 Cyclops 43123 | -2/Protoforge | Spotted Hotshot 43125 | -2/Protoforge | Spotted Hotshot 43125 | -2/Protoforge | Spotted Hotshot 43127 | -2/Protoforge | Spotted Hotshot 43129 | -2/Protoforge | Spotted Hotshot 43129 | -2/Protoforge | Destroyed Hotshot 43132 | -2/Protoforge | Destroyed Hotshot 43136 | -2/Protoforge | Identified Hpw. Transdimensional Reconstructor (x2) 43136 | -2/Protoforge | Warped through subspace 43167 | -2/Protoforge | Lost 4 parts (3u1w) 43213 | -2/Protoforge | Entered Access 43213 | -1/Access | Evolved 2 slots: Weapon x2 43361 | -1/Access | Destroyed 16 combat bots 43368 | -1/Access | Lost 3 parts (1p1u1w) 43963 | -1/Access | First assault squad dispatched 43971 | -1/Access | Garrison activated, responded to threat 44273 | -1/Access | System corruption reached 10% 44394 | -1/Access | High security lockdown imminent 44415 | -1/Access | Destroyed 10 combat bots 44474 | -1/Access | High security lockdown engaged 44722 | -1/Access | Discovered new exit (range 8) 44734 | -1/Access | Entered Command 44891 | -1/Command | Spotted B-99 Colossus 44939 | -1/Command | Destroyed B-99 Colossus 44979 | -1/Command | High security lockdown imminent 44996 | -1/Command | Lost 4 parts (2u2w) 45004 | -1/Command | Destroyed 9 combat bots 45059 | -1/Command | High security lockdown engaged 45114 | -1/Command | Found Ragnarok Missile Launcher 45117 | -1/Command | Found Faulty Ragnarok Missile Launcher 45120 | -1/Command | Found Ragnarok Missile Launcher 45216 | -1/Command | Spotted B-99 Colossus 45292 | -1/Command | Destroyed 9 combat bots 45293 | -1/Command | Released all parts (13) 45293 | -1/Command | Spotted Investigator 45297 | -1/Command | Core integrity fell below 50% 45300 | -1/Command | Scanned by Researcher 45307 | -1/Command | Spotted Executioner 45307 | -1/Command | Spotted Alpha 7 45307 | -1/Command | Spotted Striker 45311 | -1/Command | Spotted Executioner 45313 | -1/Command | Core integrity fell below 20% 45314 | -1/Command | Destroyed by Alpha 7 with Multirail Last Messages --------------- 45308_ System corrupted: Heat flow error (+275). 45308_ Stasis bubble bursts. 45308_ L-61 Swordsman stasis bubble strength at 80. 45309_ M-36 Artificer repairs G-73 Enforcer. 45309_ L-61 Swordsman stasis bubble strength at 65. 45310_ Penetrated by Slug. 45310_ Slug penetrates Door. 45310_ Held in stasis. 45310_ L-61 Swordsman stasis bubble strength at 50. 45311_ Penetrated by Slug. 45311_ Slug penetrates Earth. 45311_ M-36 Artificer repairs G-73 Enforcer. 45311_ L-61 Swordsman stasis bubble strength at 35. 45312_ Centrium Wheel severed. 45312_ L-61 Swordsman stasis bubble strength at 20. 45313_ Held in stasis. 45313_ Investigator is analyzing... 45313_ L-61 Swordsman stasis bubble strength at 5. 45314_ Penetrated by Slug. 45314_ Slug penetrates Wall. Map ----- +----------------------------------------------------+ | ??????????????????????????????# # #???? | | ??????????????????????????????# # #???? | | ??????????????????????????????# # #???? | | ??????????????????????????????# * # #???? | | ????????????????????????? ???# # #???? | | ??????????????????????? ???##+##+#+###### ####? | | ???????????????????? % ????# #? | | ?????????????????? = ????# #? | | ???????????????? ????# " #? | | ???????????????? ### ###?# "%" #? | | ??????????????? ###### " #? | | ??????????????? # ##### #? | | ?????????????? ##% i # #? | | ??????????????? R # # ### #? | | ????????????????? #%" # # ???#? | | ??????????????????" m " ???? | | ???????????????????? E # ???? | | ??????????????????????# gp g # #??? | | ??????????????????????# g ![ g gg ??? | | ???????????????????????# =[* =%= ??? | | ???????????????????????#;!l!!= # ??? | | ???????????????????????## ![! c ! " ?? | | ??????????????????????##; |]/ ! # ""?? | | ??????????????????????# %p% b +????? | | ???????????????????????#;l%* #????? | | ???????????????????????##@= ##"####+########????? | | ??????????????????????? % #???????????????????? | | ????????????????????? #???????????????????? | | ??????????????????? #???????????????????? | | ??????????????????## #???????????????????? | | ???????????????????###### #???????????????????? | | ????????????????????????# #???????????????????? | | ????????????????????????#;++;#???????????????????? | | ???????????????????????? %???????????????????? | | ???????????????????????? E7???????????????????? | | ???????????????????????? K ??????????????????? | | ???????????????????????? ?? #??????????????????? | | ???????????????????????? ?? ??????????????????? | | ???????????????????????? ?? #??????????????????? | | ???????????????????????? ??????????????????????? | | ???????????????????????? ??????????????????????? | | ?????????????????????????????????????????????????? | | ?????????????????????????????????????????????????? | | ?????????????????????????????????????????????????? | | ?????????????????????????????????????????????????? | | ?????????????????????????????????????????????????? | | ?????????????????????????????????????????????????? | | ?????????????????????????????????????????????????? | | ?????????????????????????????????????????????????? | | ?????????????????????????????????????????????????? | +----------------------------------------------------+ Best States ------------- Heat Dissipation 224 Coolant Potential 120 Energy Generation 96 Energy Capacity 980 Matter Stores 432 Matter Capacity 550 Sight Range 24 Robot Scan Range 20 Terrain Scan Density 10 Jamming Range 16 Power Amplification 30 Corruption Containment 12 Armor Coverage 1600 Resistance: KI 25 Resistance: TH 30 Resistance: EX 75 Resistance: EM 90 Weapon Shielding 90 Point Defense Rating 160 Weapon Cycling 20 Phase Shifting 20 Evasion (%) 60 Targeting Accuracy 12 Target Analysis 10 Core Analysis 12 Recoil Reduction 6 Matter Filtering 50 Kinecelleration 50 Salvage Targeting 3 Offensive Hacking 20 Defensive Hacking 28 Trap Extractor Capacity 4 Item Schematics ----------------- Targeting Computer | -10/Materials | Hacked Heat Sink | -10/Materials | Hacked Lgt. Armor Plating | -10/Materials | Hacked Lgt. Ion Engine | -10/Materials | Hacked Arm. Wheel | -9/Materials | Hacked Grenade Launcher | -9/Materials | Scanalyzed Hpw. Tractor Beam | -9/Materials | Scanalyzed Arm. Huge Wheel | -8/Materials | Scanalyzed Exp. Targeting Computer | -8/Materials | Scanalyzed Recoil Stabilizer | -8/Materials | Scanalyzed Hcp. Matter Pod | -8/Materials | Scanalyzed Assault Rifle | -8/Materials | Hacked Hardlight Generator | -8/Materials | Scanalyzed Coolant Injector | -8/Materials | Scanalyzed Assault Cannon | -8/Materials | Scanalyzed Rnf. Quantum Reactor | -7/Factory | Scanalyzed Hvy. Linear Accelerator | -7/Factory | Scanalyzed Adv. Cooling System | -7/Factory | Scanalyzed Adv. Shield Generator | -7/Factory | Scanalyzed Graphene Brace | -7/Factory | Scanalyzed Missile Launcher | -7/Factory | Scanalyzed Lrn. Tractor Beam | -5/Factory | Scanalyzed Assault Drone Bay | -5/Zhirov | Free Exp. Heat Sink | -5/Zhirov | Free Exp. Optical Array | -5/Zhirov | Free Imp. Arc Thrower | -5/Zhirov | Free Cld. Proton Cannon | -3/Testing | Archive Electron Diverter | -3/Testing | Archive Exp. Thermal Shield | -3/Testing | Archive Lgt. Neutrino Core | -3/Testing | Archive Multireflex Exoskeleton | -2/Quarantine | Archive Exp. Myomer Leg | -2/Quarantine | Archive Exp. Transmission Jammer | -2/Quarantine | Archive Cld. Field Propulsion Drive | -2/Quarantine | Archive Ragnarok Missile Launcher | -2/Quarantine | Archive Imp. Q-thruster | -2/Quarantine | Archive Exp. Matter Compressor | -2/Quarantine | Archive Centrium Greatsword | -2/Quarantine | Archive Exp. Q-thruster | -2/Quarantine | Archive Robot Schematics ------------------ M-13 Machinist | -10/Materials | Hacked A-15 Conveyor | -3/Testing | Archive G-67 Veteran | -3/Testing | Archive R-10 Processor | -2/Quarantine | Archive R-06 Scavenger | -2/Quarantine | Archive Fabricated ------------ Hardcell Cannon | x2 | -7/Factory | Preloaded Arm. Huge Wheel | x2 | -7/Factory Repaired ---------- Hvy. Assault Rifle | 28% | -9/Materials Hvy. Assault Rifle | 39% | -9/Materials Arm. Huge Wheel | 99% | -8/Materials | Broken Alien Tech Used ----------------- Integrated Dissipator Transdimensional Reconstructor Dimensional Node Initializer Core Stripper High-powered Transdimensional Reconstructor Achievements -------------- None Challenges ------------ None Game ------ Seed MachineInertialGenerator Manual? 0 Play Time 07:37:10 Cumulative 1240.6 hours Start 2025.08.10 @ 23:50:28 End 2025.08.13 @ 23:08:03 Sessions 7 Manual Loads 0 Difficulty Rogue Special Mode None Game No. 592 Rogue 592 Adventurer 0 Explorer 0 Win Type - Total 23 Types 10/4/3/0/1/1/2/2/0/0 Lore% 91 Gallery% 90 Achievement% 84 Wizard Run 0 Options --------- Layout 0 ASCII 0 Keyboard 0 Movement Numpad Keybinds 0 Fullscreen 2 Font 24/Smallcaps Map View 76x50 Zoom Use 0% Tactical HUD 1 Map Filters NONE Filters SHIFT_HUE(315) Steam 1 RUN: b3d5ce43-ff97-411b-8bcc-ec7ccd024dc5